Workbook

Sheet INSTRUCTIONS
C1: Computer Accounting with QuickBooks 2015 by Donna Kay
C2: Go Digital Reports
C3: Save your QuickBooks reports using the following steps.
B5: Step 1 | C5: Go to www.My-QuickBooks.com.
B6: Step 2 | C6: Select QB 2015.
B7: Step 3 | C7: Download the Go Digital Excel REPORTS template for the assignment you are completing (Chapter or Case).
B8: Step 4 | C8: Open the Excel workbook. Select File > Save As.
B9: Step 5 | C9: Rename the Excel file: IMPORTANT! To receive credit for your work, use the filename: [YourLastName FirstName] [CH/CASE][No] REPORTS. Example: YourLastName FirstName CH1 REPORTS
B10: Step 6 | C10: Close your Excel workbook.
B11: Step 7 | C11: When your Computer Accounting with QuickBooks text asks you to print or export a report, use the Report Center to display the report on your screen.
B12: Step 8 | C12: With the report displayed onscreen, select Excel.
B15: Step 9 | C15: Select Create New Worksheet.
B16: Step 10 | C16: Select Replace an existing worksheet.
B18: Step 11 | C18: Browse for the Excel REPORTS template with your name in the filename.
B19: Step 12 | C19: Select the correct sheetname from the drop-down list.
B20: Step 13 | C20: Select Advanced.
B21: Step 14 | C21: Uncheck Space between columns.
B22: Step 15 | C22: Uncheck Include QuickBooks Export Guide worksheet with helpful advice.
B23: Step 16 | C23: Select Show report header: On printed report and screen.
B24: Step 17 | C24: Click OK.
B25: Step 18 | C25: Click Export.
B26: Step 19 | C26: If the Export Report Alert window appears, select Do not display this message in the future.
B28: Step 20 | C28: Select Yes to continue. Excel software should open on your screen with your QuickBooks report inserted into the correct sheet.
B29: Step 21 | C29: On the REPORTS sheet, check the reports that you have completed with an "x". Failure to check the completed reports may result in a score of -0-.
B30: Step 22 | C30: Save your Excel workbook using the appropriate file name. Select File > Save As. IMPORTANT! To receive credit for your work, use the filename: [YourLastName FirstName] [CH/CASE][No] REPORTS. Example: YourLastName FirstName CH1 REPORTS (Note: With some Excel versions, you must close the workbook before inserting the next report.)
B31: Step 23 | C31: Ask your instructor if you should email the Excel spreadsheet or upload to your courseware .

Sheet 9 REPORTS GRADER
D1: Computer Accounting with QuickBooks 2015 by Donna Kay
D2: Chapter 9 Reports
D3: Chapter 9 | E3: Sheetname
B4: x | C4: * | D4: Trial Balance | E4: CH9 TB
B5: x | C5: * | D5: Adjusting Entry | E5: CH9 ADJ
D6: Exercise 9.1
B7: x | C7: * | D7: Task 3: Check Detail | E7: EX9.1.3 CKS
D8: Exercise 9.2
B9: x | C9: * | D9: Task 3: Deposit Detail | E9: EX9.2.3 DEP
D10: Exercise 9.3
B11: x | C11: * | D11: Task 2: Trial Balance | E11: EX9.3.2 TB
B12: x | C12: * | D12: Task 4: Adjusting Entries | E12: EX9.3.4 ADJ
B13: x | C13: * | D13: Task 5: Adjusted Trial Balance | E13: EX9.3.5 ADJTB
D14: Exercise 9.4
B15: x | C15: * | D15: Task 2: General Ledger | E15: EX9.4.2 GL
B16: x | C16: * | D16: Task 3: Profit & Loss | E16: EX9.4.3 PL
B17: x | C17: * | D17: Task 3: Balance Sheet | E17: EX9.4.3 BS
B18: x | C18: * | D18: Task 3: Statement of Cash Flows | E18: EX9.4.3 SCF
D19: Exercise 9.6
B20: x | C20: * | D20: Task 2: Chart of Accounts | E20: EX9.6.2 COA
B21: x | C21: * | D21: Task 3: Customer List | E21: EX9.6.3 CUST
B22: x | C22: * | D22: Task 4: Vendor List | E22: EX9.6.4 VEN
B23: x | C23: * | D23: Task 5: Item List | E23: EX9.6.5 ITEM
B24: x | C24: * | D24: Task 7: Check Detail | E24: EX9.6.7 CKS
B25: x | C25: * | D25: Task 7: Deposit Detail | E25: EX9.6.7 DEP
B26: x | C26: * | D26: Task 8: Journal | E26: EX9.6.8 JOUR
B27: x | C27: * | D27: Task 9: Adjusted Trial Balance | E27: EX9.6.9 ADJTB
B28: x | C28: * | D28: Task 9: General Ledger | E28: EX9.6.9 GL
B29: x | C29: * | D29: Task 9: Profit & Loss | E29: EX9.6.9 PL
B30: x | C30: * | D30: Task 9: Balance Sheet | E30: EX9.6.9 BS
B31: x | C31: * | D31: Task 9: Statement of Cash Flows | E31: EX9.6.9 SCF
D35: Project 9 Reports
D36: Project 9 | E36: Sheetname
B37: x | C37: * | D37: Deposit Detail | E37: PR9.3 DEP
B38: x | C38: * | D38: Check Detail | E38: PR9.4 CKS
B39: x | C39: * | D39: Trial Balance | E39: PR9.5 TB
B40: x | C40: * | D40: Adjusting Entries | E40: PR9.6 ADJ
B41: x | C41: * | D41: Adjusted Trial Balance | E41: PR9.7 ADJTB
B42: x | C42: * | D42: General Ledger | E42: PR9.8 GL
B43: x | C43: * | D43: Profit & Loss | E43: PR9.9 PL
B44: x | C44: * | D44: Balance Sheet | E44: PR9.10 BS
B45: x | C45: * | D45: Statement of Cash Flows | E45: PR9.11 SCF

Sheet CH9 TB
A1: YourName Chapter 9 Paint Palette
A2: Trial Balance
A3: As of December 31, 2020 | D3: Accrual Basis
C4: Dec 31, 20
C5: Debit | D5: Credit
B6: Checking | C6: 7200
B7: 11000 · Accounts Receivable | C7: 0
B8: 12000 · Undeposited Funds | C8: 0
B9: 14100 · Computer:14200 · Computer Cost | C9: 1500
B10: 14400 · Equipment:14500 · Equipment Cost | C10: 500
B11: 21000 · Accounts Payable | C11: 0
B12: 30000 · Opening Balance Equity | D12: 6000
B13: 47900 · Sales | D13: 3400
B14: 64800 · Paint Supplies Expense | C14: 0
B15: 67100 · Rent Expense | C15: 200
A16: TOTAL | C16: =ROUND(SUM(C6:C15),5) -> 9400 | D16: =ROUND(SUM(D6:D15),5) -> 9400

Sheet CH9 ADJ
A1: YourName Chapter 9 Paint Palette
A2: Journal Entries Entered/Modified Today
A3: December 31, 2020
B4: Trans # | C4: Type | D4: Entered/Last Modified | E4: Date | F4: Num | G4: Adj | H4: Name | I4: Memo | J4: Account | K4: Debit | L4: Credit
B5: 11 | C5: General Journal | D5: 2014-10-19T18:39:16 | E5: 2020-12-31 | F5: ADJ1 | G5: Ö | J5: 65300 · Depr Expense Computer | K5: 500
G6: Ö | J6: 14300 · Accumulated Depr Computer | L6: 500
K7: =ROUND(SUM(K5:K6),5) -> 500 | L7: =ROUND(SUM(L5:L6),5) -> 500
A8: TOTAL | K8: =K7 -> 500 | L8: =L7 -> 500

Sheet EX9.1.3 CKS
A1: YourName Exercise 9.1 Paint Palette
A2: Check Detail
A3: January through December 2020
B4: Type | C4: Num | D4: Date | E4: Name | F4: Item | G4: Account | H4: Paid Amount | I4: Original Amount
B6: Check | C6: 501 | D6: 2020-01-01 | E6: Cornell Technologies | G6: Checking | I6: -1500
G8: 14200 · Computer Cost | H8: -1500 | I8: 1500
A9: TOTAL | H9: =ROUND(SUM(H7:H8),5) -> -1500 | I9: =ROUND(SUM(I7:I8),5) -> 1500
B11: Bill Pmt -Check | C11: 502 | D11: 2020-02-04 | E11: Brewer Paint Supplies | G11: Checking | I11: -800
B13: Bill | D13: 2020-01-03 | E13: Beneficio, Katrina:Dining Room | G13: 64800 · Paint Supplies Expense | H13: -300 | I13: 300
B14: Bill | D14: 2020-01-04 | G14: 14500 · Equipment Cost | H14: -500 | I14: 500
A15: TOTAL | H15: =ROUND(SUM(H12:H14),5) -> -800 | I15: =ROUND(SUM(I12:I14),5) -> 800
B17: Bill Pmt -Check | C17: 503 | D17: 2020-02-04 | E17: Hartzheim Leasing | G17: Checking | I17: -200
B19: Bill | D19: 2020-01-04 | G19: 67100 · Rent Expense | H19: -200 | I19: 200
A20: TOTAL | H20: =ROUND(SUM(H18:H19),5) -> -200 | I20: =ROUND(SUM(I18:I19),5) -> 200
B22: Bill Pmt -Check | C22: 504 | D22: 2020-02-28 | E22: Hartzheim Leasing | G22: Checking | I22: -200
B24: Bill | D24: 2020-02-01 | G24: 67100 · Rent Expense | H24: -200 | I24: 200
A25: TOTAL | H25: =ROUND(SUM(H23:H24),5) -> -200 | I25: =ROUND(SUM(I23:I24),5) -> 200
B27: Bill Pmt -Check | C27: 505 | D27: 2020-03-30 | E27: Hartzheim Leasing | G27: Checking | I27: -200
B29: Bill | D29: 2020-03-01 | G29: 67100 · Rent Expense | H29: -200 | I29: 200
A30: TOTAL | H30: =ROUND(SUM(H28:H29),5) -> -200 | I30: =ROUND(SUM(I28:I29),5) -> 200
B32: Bill Pmt -Check | C32: 506 | D32: 2020-04-30 | E32: Brewer Paint Supplies | G32: Checking | I32: -50
B34: Bill | D34: 2020-04-04 | G34: 64800 · Paint Supplies Expense | H34: -50 | I34: 50
A35: TOTAL | H35: =ROUND(SUM(H33:H34),5) -> -50 | I35: =ROUND(SUM(I33:I34),5) -> 50
B37: Bill Pmt -Check | C37: 507 | D37: 2020-04-30 | E37: Hartzheim Leasing | G37: Checking | I37: -200
B39: Bill | D39: 2020-04-01 | G39: 67100 · Rent Expense | H39: -200 | I39: 200
A40: TOTAL | H40: =ROUND(SUM(H38:H39),5) -> -200 | I40: =ROUND(SUM(I38:I39),5) -> 200
B42: Bill Pmt -Check | C42: 508 | D42: 2020-05-30 | E42: Hartzheim Leasing | G42: Checking | I42: -200
B44: Bill | D44: 2020-05-01 | G44: 67100 · Rent Expense | H44: -200 | I44: 200
A45: TOTAL | H45: =ROUND(SUM(H43:H44),5) -> -200 | I45: =ROUND(SUM(I43:I44),5) -> 200
B47: Bill Pmt -Check | C47: 509 | D47: 2020-06-30 | E47: Hartzheim Leasing | G47: Checking | I47: -200
B49: Bill | D49: 2020-06-01 | G49: 67100 · Rent Expense | H49: -200 | I49: 200
A50: TOTAL | H50: =ROUND(SUM(H48:H49),5) -> -200 | I50: =ROUND(SUM(I48:I49),5) -> 200
B52: Bill Pmt -Check | C52: 510 | D52: 2020-07-30 | E52: Brewer Paint Supplies | G52: Checking | I52: -100
B54: Bill | D54: 2020-07-01 | G54: 64800 · Paint Supplies Expense | H54: -100 | I54: 100
A55: TOTAL | H55: =ROUND(SUM(H53:H54),5) -> -100 | I55: =ROUND(SUM(I53:I54),5) -> 100
B57: Bill Pmt -Check | C57: 511 | D57: 2020-07-30 | E57: Hartzheim Leasing | G57: Checking | I57: -200
B59: Bill | D59: 2020-07-01 | G59: 67100 · Rent Expense | H59: -200 | I59: 200
A60: TOTAL | H60: =ROUND(SUM(H58:H59),5) -> -200 | I60: =ROUND(SUM(I58:I59),5) -> 200
B62: Bill Pmt -Check | C62: 512 | D62: 2020-08-30 | E62: Hartzheim Leasing | G62: Checking | I62: -200
B64: Bill | D64: 2020-08-01 | G64: 67100 · Rent Expense | H64: -200 | I64: 200
A65: TOTAL | H65: =ROUND(SUM(H63:H64),5) -> -200 | I65: =ROUND(SUM(I63:I64),5) -> 200
B67: Bill Pmt -Check | C67: 513 | D67: 2020-09-30 | E67: Brewer Paint Supplies | G67: Checking | I67: -75
B69: Bill | D69: 2020-09-02 | G69: 64800 · Paint Supplies Expense | H69: -75 | I69: 75
A70: TOTAL | H70: =ROUND(SUM(H68:H69),5) -> -75 | I70: =ROUND(SUM(I68:I69),5) -> 75
B72: Bill Pmt -Check | C72: 514 | D72: 2020-09-30 | E72: Hartzheim Leasing | G72: Checking | I72: -200
B74: Bill | D74: 2020-09-01 | G74: 67100 · Rent Expense | H74: -200 | I74: 200
A75: TOTAL | H75: =ROUND(SUM(H73:H74),5) -> -200 | I75: =ROUND(SUM(I73:I74),5) -> 200
B77: Bill Pmt -Check | C77: 515 | D77: 2020-10-30 | E77: Hartzheim Leasing | G77: Checking | I77: -200
B79: Bill | D79: 2020-10-01 | G79: 67100 · Rent Expense | H79: -200 | I79: 200
A80: TOTAL | H80: =ROUND(SUM(H78:H79),5) -> -200 | I80: =ROUND(SUM(I78:I79),5) -> 200
B82: Bill Pmt -Check | C82: 516 | D82: 2020-11-30 | E82: Hartzheim Leasing | G82: Checking | I82: -200
B84: Bill | D84: 2020-11-01 | G84: 67100 · Rent Expense | H84: -200 | I84: 200
A85: TOTAL | H85: =ROUND(SUM(H83:H84),5) -> -200 | I85: =ROUND(SUM(I83:I84),5) -> 200
B87: Bill Pmt -Check | C87: 517 | D87: 2020-12-30 | E87: Hartzheim Leasing | G87: Checking | I87: -200
B89: Bill | D89: 2020-12-01 | G89: 67100 · Rent Expense | H89: -200 | I89: 200
A90: TOTAL | H90: =ROUND(SUM(H88:H89),5) -> -200 | I90: =ROUND(SUM(I88:I89),5) -> 200

Sheet EX9.2.3 DEP
A1: YourName Exercise 9.2 Paint Palette
A2: Deposit Detail
A3: January through December 2020
B4: Type | C4: Num | D4: Date | E4: Name | F4: Account | G4: Amount
B6: Deposit | D6: 2020-01-01 | F6: Checking | G6: 6000
E8: YourName | F8: 30000 · Opening Balance Equity | G8: -6000
A9: TOTAL | G9: =ROUND(SUM(G7:G8),5) -> -6000
B11: Deposit | D11: 2020-02-04 | F11: Checking | G11: 3700
B13: Payment | C13: 555 | D13: 2020-02-04 | E13: Beneficio, Katrina:Dining Room | F13: 12000 · Undeposited Funds | G13: -3700
A14: TOTAL | G14: =ROUND(SUM(G12:G13),5) -> -3700
B16: Deposit | D16: 2020-03-15 | F16: Checking | G16: 3440
B18: Payment | C18: 675 | D18: 2020-03-15 | E18: Beneficio, Katrina:Dining Room | F18: 12000 · Undeposited Funds | G18: -3440
A19: TOTAL | G19: =ROUND(SUM(G17:G18),5) -> -3440
B21: Deposit | D21: 2020-04-15 | F21: Checking | G21: 3360
B23: Payment | C23: 690 | D23: 2020-04-15 | E23: Beneficio, Katrina:Dining Room | F23: 12000 · Undeposited Funds | G23: -3360
A24: TOTAL | G24: =ROUND(SUM(G22:G23),5) -> -3360
B26: Deposit | D26: 2020-05-15 | F26: Checking | G26: 3200
B28: Payment | C28: 432 | D28: 2020-05-15 | E28: Whalen, Tom:Foyer | F28: 12000 · Undeposited Funds | G28: -3200
A29: TOTAL | G29: =ROUND(SUM(G27:G28),5) -> -3200
B31: Deposit | D31: 2020-06-15 | F31: Checking | G31: 3000
B33: Payment | C33: 455 | D33: 2020-06-15 | E33: Whalen, Tom:Foyer | F33: 12000 · Undeposited Funds | G33: -3000
A34: TOTAL | G34: =ROUND(SUM(G32:G33),5) -> -3000
B36: Deposit | D36: 2020-07-15 | F36: Checking | G36: 4000
B38: Payment | C38: 733 | D38: 2020-07-15 | E38: Beneficio, Katrina:Vaulted Kitchen | F38: 12000 · Undeposited Funds | G38: -4000
A39: TOTAL | G39: =ROUND(SUM(G37:G38),5) -> -4000
B41: Deposit | D41: 2020-08-15 | F41: Checking | G41: 3600
B43: Payment | C43: 750 | D43: 2020-08-15 | E43: Beneficio, Katrina:Vaulted Kitchen | F43: 12000 · Undeposited Funds | G43: -3600
A44: TOTAL | G44: =ROUND(SUM(G42:G43),5) -> -3600
B46: Deposit | D46: 2020-09-15 | F46: Checking | G46: 3680
B48: Payment | C48: 782 | D48: 2020-09-15 | E48: Beneficio, Katrina:Vaulted Kitchen | F48: 12000 · Undeposited Funds | G48: -3680
A49: TOTAL | G49: =ROUND(SUM(G47:G48),5) -> -3680
B51: Deposit | D51: 2020-11-15 | F51: Checking | G51: 3400
B53: Payment | C53: 685 | D53: 2020-11-15 | E53: Whalen, Tom:Screen Porch | F53: 12000 · Undeposited Funds | G53: -3400
A54: TOTAL | G54: =ROUND(SUM(G52:G53),5) -> -3400
B56: Deposit | D56: 2020-12-15 | F56: Checking | G56: 3480
B58: Payment | C58: 725 | D58: 2020-12-15 | E58: Whalen, Tom:Screen Porch | F58: 12000 · Undeposited Funds | G58: -3480
A59: TOTAL | G59: =ROUND(SUM(G57:G58),5) -> -3480

Sheet EX9.3.2 TB
A1: YourName Exercise 9.3 Paint Palette
A2: Trial Balance
A3: As of December 31, 2020 | D3: Accrual Basis
C4: Dec 31, 20
C5: Debit | D5: Credit
B6: Checking | C6: 35935
B7: 11000 · Accounts Receivable | C7: 0
B8: 12000 · Undeposited Funds | C8: 0
B9: 14100 · Computer:14200 · Computer Cost | C9: 1500
B10: 14100 · Computer:14300 · Accumulated Depr Computer | D10: 500
B11: 14400 · Equipment:14500 · Equipment Cost | C11: 500
B12: 21000 · Accounts Payable | D12: 50
B13: 30000 · Opening Balance Equity | D13: 6000
B14: 47900 · Sales | D14: 34560
B15: 64800 · Paint Supplies Expense | C15: 275
B16: 65300 · Depr Expense Computer | C16: 500
B17: 67100 · Rent Expense | C17: 2400
A18: TOTAL | C18: =ROUND(SUM(C6:C17),5) -> 41110 | D18: =ROUND(SUM(D6:D17),5) -> 41110

Sheet EX9.3.4 ADJ
A1: YourName Exercise 9.3 Paint Palette
A2: Adjusting Journal Entries
A3: December 31, 2020 | H3: Accrual Basis
B4: Date | C4: Num | D4: Name | E4: Memo | F4: Account | G4: Debit | H4: Credit
B5: 2020-12-31 | C5: ADJ1 | F5: 65300 · Depr Expense Computer | G5: 500
F6: 14300 · Accumulated Depr Computer | H6: 500
G7: =ROUND(SUM(G5:G6),5) -> 500 | H7: =ROUND(SUM(H5:H6),5) -> 500
B8: 2020-12-31 | C8: ADJ2 | F8: 65600 · Depr Expense Equipment | G8: 100
F9: 14600 · Acc Depr Equipment | H9: 100
G10: =ROUND(SUM(G8:G9),5) -> 100 | H10: =ROUND(SUM(H8:H9),5) -> 100
A11: TOTAL | G11: =ROUND(G7+G10,5) -> 600 | H11: =ROUND(H7+H10,5) -> 600

Sheet EX9.3.5 ADJTB
A1: YourName Exercise 9.3 Paint Palette
A2: Adjusted Trial Balance
A3: December 31, 2020 | H3: Accrual Basis
C4: Unadjusted Balance | E4: Adjustments | G4: Adjusted Balance
C5: Debit | D5: Credit | E5: Debit | F5: Credit | G5: Debit | H5: Credit
B6: Checking | C6: 35935 | G6: 35935
B7: 11000 · Accounts Receivable | C7: 0 | G7: 0
B8: 12000 · Undeposited Funds | C8: 0 | G8: 0
B9: 14100 · Computer:14200 · Computer Cost | C9: 1500 | G9: 1500
B10: 14100 · Computer:14300 · Accumulated Depr Computer | F10: 500 | H10: 500
B11: 14400 · Equipment:14500 · Equipment Cost | C11: 500 | G11: 500
B12: 14400 · Equipment:14600 · Acc Depr Equipment | F12: 100 | H12: 100
B13: 21000 · Accounts Payable | D13: 50 | H13: 50
B14: 30000 · Opening Balance Equity | D14: 6000 | H14: 6000
B15: 47900 · Sales | D15: 34560 | H15: 34560
B16: 64800 · Paint Supplies Expense | C16: 275 | G16: 275
B17: 65300 · Depr Expense Computer | E17: 500 | G17: 500
B18: 65600 · Depr Expense Equipment | E18: 100 | G18: 100
B19: 67100 · Rent Expense | C19: 2400 | G19: 2400
A20: TOTAL | C20: =ROUND(SUM(C6:C19),5) -> 40610 | D20: 40610 | E20: 600 | F20: 600 | G20: 41210 | H20: 41210

Sheet EX9.4.2 GL
A1: YourName Exercise 9.4 Paint Palette
A2: General Ledger
A3: As of December 31, 2020 | N3: Accrual Basis
E4: Type | F4: Date | G4: Num | H4: Adj | I4: Name | J4: Memo | K4: Split | L4: Debit | M4: Credit | N4: Balance
B5: Checking | N5: 0
E6: Deposit | F6: 2020-01-01 | J6: Deposit | K6: 30000 · Opening Balance Equity | L6: 6000 | N6: 6000
E7: Check | F7: 2020-01-01 | G7: 501 | I7: Cornell Technologies | J7: 2002 | K7: 14200 · Computer Cost | M7: 1500 | N7: 4500
E8: Bill Pmt -Check | F8: 2020-02-04 | G8: 502 | I8: Brewer Paint Supplies | K8: 21000 · Accounts Payable | M8: 800 | N8: 3700
E9: Bill Pmt -Check | F9: 2020-02-04 | G9: 503 | I9: Hartzheim Leasing | J9: 2003 | K9: 21000 · Accounts Payable | M9: 200 | N9: 3500
E10: Deposit | F10: 2020-02-04 | J10: Deposit | K10: 12000 · Undeposited Funds | L10: 3700 | N10: 7200
E11: Bill Pmt -Check | F11: 2020-02-28 | G11: 504 | I11: Hartzheim Leasing | J11: 2003 | K11: 21000 · Accounts Payable | M11: 200 | N11: 7000
E12: Deposit | F12: 2020-03-15 | J12: Deposit | K12: 12000 · Undeposited Funds | L12: 3440 | N12: 10440
E13: Bill Pmt -Check | F13: 2020-03-30 | G13: 505 | I13: Hartzheim Leasing | J13: 2003 | K13: 21000 · Accounts Payable | M13: 200 | N13: 10240
E14: Deposit | F14: 2020-04-15 | J14: Deposit | K14: 12000 · Undeposited Funds | L14: 3360 | N14: 13600
E15: Bill Pmt -Check | F15: 2020-04-30 | G15: 506 | I15: Brewer Paint Supplies | K15: 21000 · Accounts Payable | M15: 50 | N15: 13550
E16: Bill Pmt -Check | F16: 2020-04-30 | G16: 507 | I16: Hartzheim Leasing | J16: 2003 | K16: 21000 · Accounts Payable | M16: 200 | N16: 13350
E17: Deposit | F17: 2020-05-15 | J17: Deposit | K17: 12000 · Undeposited Funds | L17: 3200 | N17: 16550
E18: Bill Pmt -Check | F18: 2020-05-30 | G18: 508 | I18: Hartzheim Leasing | J18: 2003 | K18: 21000 · Accounts Payable | M18: 200 | N18: 16350
E19: Deposit | F19: 2020-06-15 | J19: Deposit | K19: 12000 · Undeposited Funds | L19: 3000 | N19: 19350
E20: Bill Pmt -Check | F20: 2020-06-30 | G20: 509 | I20: Hartzheim Leasing | J20: 2003 | K20: 21000 · Accounts Payable | M20: 200 | N20: 19150
E21: Deposit | F21: 2020-07-15 | J21: Deposit | K21: 12000 · Undeposited Funds | L21: 4000 | N21: 23150
E22: Bill Pmt -Check | F22: 2020-07-30 | G22: 510 | I22: Brewer Paint Supplies | K22: 21000 · Accounts Payable | M22: 100 | N22: 23050
E23: Bill Pmt -Check | F23: 2020-07-30 | G23: 511 | I23: Hartzheim Leasing | J23: 2003 | K23: 21000 · Accounts Payable | M23: 200 | N23: 22850
E24: Deposit | F24: 2020-08-15 | J24: Deposit | K24: 12000 · Undeposited Funds | L24: 3600 | N24: 26450
E25: Bill Pmt -Check | F25: 2020-08-30 | G25: 512 | I25: Hartzheim Leasing | J25: 2003 | K25: 21000 · Accounts Payable | M25: 200 | N25: 26250
E26: Deposit | F26: 2020-09-15 | J26: Deposit | K26: 12000 · Undeposited Funds | L26: 3680 | N26: 29930
E27: Bill Pmt -Check | F27: 2020-09-30 | G27: 513 | I27: Brewer Paint Supplies | K27: 21000 · Accounts Payable | M27: 75 | N27: 29855
E28: Bill Pmt -Check | F28: 2020-09-30 | G28: 514 | I28: Hartzheim Leasing | J28: 2003 | K28: 21000 · Accounts Payable | M28: 200 | N28: 29655
E29: Bill Pmt -Check | F29: 2020-10-30 | G29: 515 | I29: Hartzheim Leasing | J29: 2003 | K29: 21000 · Accounts Payable | M29: 200 | N29: 29455
E30: Deposit | F30: 2020-11-15 | J30: Deposit | K30: 12000 · Undeposited Funds | L30: 3400 | N30: 32855
E31: Bill Pmt -Check | F31: 2020-11-30 | G31: 516 | I31: Hartzheim Leasing | J31: 2003 | K31: 21000 · Accounts Payable | M31: 200 | N31: 32655
E32: Deposit | F32: 2020-12-15 | J32: Deposit | K32: 12000 · Undeposited Funds | L32: 3480 | N32: 36135
E33: Bill Pmt -Check | F33: 2020-12-30 | G33: 517 | I33: Hartzheim Leasing | J33: 2003 | K33: 21000 · Accounts Payable | M33: 200 | N33: 35935
B34: Total Checking | L34: =ROUND(SUM(L5:L33),5) -> 40860 | M34: =ROUND(SUM(M5:M33),5) -> 4925 | N34: =N33 -> 35935
B35: 11000 · Accounts Receivable | N35: 0
E36: Invoice | F36: 2020-01-31 | G36: 1 | I36: Beneficio, Katrina:Dining Room | K36: -SPLIT- | L36: 3700 | N36: 3700
E37: Payment | F37: 2020-02-04 | G37: 555 | I37: Beneficio, Katrina:Dining Room | K37: 12000 · Undeposited Funds | M37: 3700 | N37: 0
E38: Invoice | F38: 2020-02-28 | G38: 2 | I38: Beneficio, Katrina:Dining Room | K38: 47900 · Sales | L38: 3440 | N38: 3440
E39: Payment | F39: 2020-03-15 | G39: 675 | I39: Beneficio, Katrina:Dining Room | K39: 12000 · Undeposited Funds | M39: 3440 | N39: 0
E40: Invoice | F40: 2020-03-31 | G40: 3 | I40: Beneficio, Katrina:Dining Room | K40: 47900 · Sales | L40: 3360 | N40: 3360
E41: Payment | F41: 2020-04-15 | G41: 690 | I41: Beneficio, Katrina:Dining Room | K41: 12000 · Undeposited Funds | M41: 3360 | N41: 0
E42: Invoice | F42: 2020-04-30 | G42: 4 | I42: Whalen, Tom:Foyer | K42: 47900 · Sales | L42: 3200 | N42: 3200
E43: Payment | F43: 2020-05-15 | G43: 432 | I43: Whalen, Tom:Foyer | K43: 12000 · Undeposited Funds | M43: 3200 | N43: 0
E44: Invoice | F44: 2020-05-31 | G44: 5 | I44: Whalen, Tom:Foyer | K44: 47900 · Sales | L44: 3000 | N44: 3000
E45: Payment | F45: 2020-06-15 | G45: 455 | I45: Whalen, Tom:Foyer | K45: 12000 · Undeposited Funds | M45: 3000 | N45: 0
E46: Invoice | F46: 2020-06-30 | G46: 6 | I46: Beneficio, Katrina:Vaulted Kitchen | K46: 47900 · Sales | L46: 4000 | N46: 4000
E47: Payment | F47: 2020-07-15 | G47: 733 | I47: Beneficio, Katrina:Vaulted Kitchen | K47: 12000 · Undeposited Funds | M47: 4000 | N47: 0
E48: Invoice | F48: 2020-07-31 | G48: 7 | I48: Beneficio, Katrina:Vaulted Kitchen | K48: 47900 · Sales | L48: 3600 | N48: 3600
E49: Payment | F49: 2020-08-15 | G49: 750 | I49: Beneficio, Katrina:Vaulted Kitchen | K49: 12000 · Undeposited Funds | M49: 3600 | N49: 0
E50: Invoice | F50: 2020-08-31 | G50: 8 | I50: Beneficio, Katrina:Vaulted Kitchen | K50: 47900 · Sales | L50: 3680 | N50: 3680
E51: Payment | F51: 2020-09-15 | G51: 782 | I51: Beneficio, Katrina:Vaulted Kitchen | K51: 12000 · Undeposited Funds | M51: 3680 | N51: 0
E52: Invoice | F52: 2020-10-31 | G52: 9 | I52: Whalen, Tom:Screen Porch | K52: 47900 · Sales | L52: 3400 | N52: 3400
E53: Payment | F53: 2020-11-15 | G53: 685 | I53: Whalen, Tom:Screen Porch | K53: 12000 · Undeposited Funds | M53: 3400 | N53: 0
E54: Invoice | F54: 2020-11-30 | G54: 10 | I54: Whalen, Tom:Screen Porch | K54: 47900 · Sales | L54: 3480 | N54: 3480
E55: Payment | F55: 2020-12-15 | G55: 725 | I55: Whalen, Tom:Screen Porch | K55: 12000 · Undeposited Funds | M55: 3480 | N55: 0
B56: Total 11000 · Accounts Receivable | L56: =ROUND(SUM(L35:L55),5) -> 34860 | M56: =ROUND(SUM(M35:M55),5) -> 34860 | N56: =N55 -> 0
B57: 12000 · Undeposited Funds | N57: 0
E58: Payment | F58: 2020-02-04 | G58: 555 | I58: Beneficio, Katrina:Dining Room | K58: 11000 · Accounts Receivable | L58: 3700 | N58: 3700
E59: Deposit | F59: 2020-02-04 | G59: 555 | I59: Beneficio, Katrina:Dining Room | J59: Deposit | K59: Checking | M59: 3700 | N59: 0
E60: Payment | F60: 2020-03-15 | G60: 675 | I60: Beneficio, Katrina:Dining Room | K60: 11000 · Accounts Receivable | L60: 3440 | N60: 3440
E61: Deposit | F61: 2020-03-15 | G61: 675 | I61: Beneficio, Katrina:Dining Room | J61: Deposit | K61: Checking | M61: 3440 | N61: 0
E62: Payment | F62: 2020-04-15 | G62: 690 | I62: Beneficio, Katrina:Dining Room | K62: 11000 · Accounts Receivable | L62: 3360 | N62: 3360
E63: Deposit | F63: 2020-04-15 | G63: 690 | I63: Beneficio, Katrina:Dining Room | J63: Deposit | K63: Checking | M63: 3360 | N63: 0
E64: Payment | F64: 2020-05-15 | G64: 432 | I64: Whalen, Tom:Foyer | K64: 11000 · Accounts Receivable | L64: 3200 | N64: 3200
E65: Deposit | F65: 2020-05-15 | G65: 432 | I65: Whalen, Tom:Foyer | J65: Deposit | K65: Checking | M65: 3200 | N65: 0
E66: Payment | F66: 2020-06-15 | G66: 455 | I66: Whalen, Tom:Foyer | K66: 11000 · Accounts Receivable | L66: 3000 | N66: 3000
E67: Deposit | F67: 2020-06-15 | G67: 455 | I67: Whalen, Tom:Foyer | J67: Deposit | K67: Checking | M67: 3000 | N67: 0
E68: Payment | F68: 2020-07-15 | G68: 733 | I68: Beneficio, Katrina:Vaulted Kitchen | K68: 11000 · Accounts Receivable | L68: 4000 | N68: 4000
E69: Deposit | F69: 2020-07-15 | G69: 733 | I69: Beneficio, Katrina:Vaulted Kitchen | J69: Deposit | K69: Checking | M69: 4000 | N69: 0
E70: Payment | F70: 2020-08-15 | G70: 750 | I70: Beneficio, Katrina:Vaulted Kitchen | K70: 11000 · Accounts Receivable | L70: 3600 | N70: 3600
E71: Deposit | F71: 2020-08-15 | G71: 750 | I71: Beneficio, Katrina:Vaulted Kitchen | J71: Deposit | K71: Checking | M71: 3600 | N71: 0
E72: Payment | F72: 2020-09-15 | G72: 782 | I72: Beneficio, Katrina:Vaulted Kitchen | K72: 11000 · Accounts Receivable | L72: 3680 | N72: 3680
E73: Deposit | F73: 2020-09-15 | G73: 782 | I73: Beneficio, Katrina:Vaulted Kitchen | J73: Deposit | K73: Checking | M73: 3680 | N73: 0
E74: Payment | F74: 2020-11-15 | G74: 685 | I74: Whalen, Tom:Screen Porch | K74: 11000 · Accounts Receivable | L74: 3400 | N74: 3400
E75: Deposit | F75: 2020-11-15 | G75: 685 | I75: Whalen, Tom:Screen Porch | J75: Deposit | K75: Checking | M75: 3400 | N75: 0
E76: Payment | F76: 2020-12-15 | G76: 725 | I76: Whalen, Tom:Screen Porch | K76: 11000 · Accounts Receivable | L76: 3480 | N76: 3480
E77: Deposit | F77: 2020-12-15 | G77: 725 | I77: Whalen, Tom:Screen Porch | J77: Deposit | K77: Checking | M77: 3480 | N77: 0
B78: Total 12000 · Undeposited Funds | L78: =ROUND(SUM(L57:L77),5) -> 34860 | M78: =ROUND(SUM(M57:M77),5) -> 34860 | N78: =N77 -> 0
B79: 14100 · Computer | N79: 0
C80: 14200 · Computer Cost | N80: 0
E81: Check | F81: 2020-01-01 | G81: 501 | I81: Cornell Technologies | J81: 2002 | K81: Checking | L81: 1500 | N81: 1500
C82: Total 14200 · Computer Cost | L82: =ROUND(SUM(L80:L81),5) -> 1500 | M82: =ROUND(SUM(M80:M81),5) -> 0 | N82: =N81 -> 1500
C83: 14300 · Accumulated Depr Computer | N83: 0
E84: General Journal | F84: 2020-12-31 | G84: ADJ1 | H84: Ö | K84: 65300 · Depr Expense Computer | M84: 500 | N84: -500
C85: Total 14300 · Accumulated Depr Computer | L85: =ROUND(SUM(L83:L84),5) -> 0 | M85: =ROUND(SUM(M83:M84),5) -> 500 | N85: =N84 -> -500
B86: Total 14100 · Computer | L86: =ROUND(L82+L85,5) -> 1500 | M86: =ROUND(M82+M85,5) -> 500 | N86: =ROUND(N82+N85,5) -> 1000
B87: 14400 · Equipment | N87: 0
C88: 14500 · Equipment Cost | N88: 0
E89: Bill | F89: 2020-01-04 | I89: Brewer Paint Supplies | K89: 21000 · Accounts Payable | L89: 500 | N89: 500
C90: Total 14500 · Equipment Cost | L90: =ROUND(SUM(L88:L89),5) -> 500 | M90: =ROUND(SUM(M88:M89),5) -> 0 | N90: =N89 -> 500
C91: 14600 · Acc Depr Equipment | N91: 0
E92: General Journal | F92: 2020-12-31 | G92: ADJ2 | H92: Ö | K92: 65600 · Depr Expense Equipment | M92: 100 | N92: -100
C93: Total 14600 · Acc Depr Equipment | L93: =ROUND(SUM(L91:L92),5) -> 0 | M93: =ROUND(SUM(M91:M92),5) -> 100 | N93: =N92 -> -100
B94: Total 14400 · Equipment | L94: =ROUND(L90+L93,5) -> 500 | M94: =ROUND(M90+M93,5) -> 100 | N94: =ROUND(N90+N93,5) -> 400
B95: 21000 · Accounts Payable | N95: 0
E96: Bill | F96: 2020-01-03 | I96: Brewer Paint Supplies | K96: 64800 · Paint Supplies Expense | M96: 300 | N96: -300
E97: Bill | F97: 2020-01-04 | I97: Brewer Paint Supplies | K97: 14500 · Equipment Cost | M97: 500 | N97: -800
E98: Bill | F98: 2020-01-04 | I98: Hartzheim Leasing | J98: Van lease | K98: 67100 · Rent Expense | M98: 200 | N98: -1000
E99: Bill | F99: 2020-02-01 | I99: Hartzheim Leasing | J99: Van lease | K99: 67100 · Rent Expense | M99: 200 | N99: -1200
E100: Bill Pmt -Check | F100: 2020-02-04 | G100: 502 | I100: Brewer Paint Supplies | K100: Checking | L100: 800 | N100: -400
E101: Bill Pmt -Check | F101: 2020-02-04 | G101: 503 | I101: Hartzheim Leasing | J101: 2003 | K101: Checking | L101: 200 | N101: -200
E102: Bill Pmt -Check | F102: 2020-02-28 | G102: 504 | I102: Hartzheim Leasing | J102: 2003 | K102: Checking | L102: 200 | N102: 0
E103: Bill | F103: 2020-03-01 | I103: Hartzheim Leasing | J103: Van lease | K103: 67100 · Rent Expense | M103: 200 | N103: -200
E104: Bill Pmt -Check | F104: 2020-03-30 | G104: 505 | I104: Hartzheim Leasing | J104: 2003 | K104: Checking | L104: 200 | N104: 0
E105: Bill | F105: 2020-04-01 | I105: Hartzheim Leasing | J105: Van lease | K105: 67100 · Rent Expense | M105: 200 | N105: -200
E106: Bill | F106: 2020-04-04 | I106: Brewer Paint Supplies | K106: 64800 · Paint Supplies Expense | M106: 50 | N106: -250
E107: Bill Pmt -Check | F107: 2020-04-30 | G107: 506 | I107: Brewer Paint Supplies | K107: Checking | L107: 50 | N107: -200
E108: Bill Pmt -Check | F108: 2020-04-30 | G108: 507 | I108: Hartzheim Leasing | J108: 2003 | K108: Checking | L108: 200 | N108: 0
E109: Bill | F109: 2020-05-01 | I109: Hartzheim Leasing | J109: Van lease | K109: 67100 · Rent Expense | M109: 200 | N109: -200
E110: Bill Pmt -Check | F110: 2020-05-30 | G110: 508 | I110: Hartzheim Leasing | J110: 2003 | K110: Checking | L110: 200 | N110: 0
E111: Bill | F111: 2020-06-01 | I111: Hartzheim Leasing | J111: Van lease | K111: 67100 · Rent Expense | M111: 200 | N111: -200
E112: Bill Pmt -Check | F112: 2020-06-30 | G112: 509 | I112: Hartzheim Leasing | J112: 2003 | K112: Checking | L112: 200 | N112: 0
E113: Bill | F113: 2020-07-01 | I113: Brewer Paint Supplies | K113: 64800 · Paint Supplies Expense | M113: 100 | N113: -100
E114: Bill | F114: 2020-07-01 | I114: Hartzheim Leasing | J114: Van lease | K114: 67100 · Rent Expense | M114: 200 | N114: -300
E115: Bill Pmt -Check | F115: 2020-07-30 | G115: 510 | I115: Brewer Paint Supplies | K115: Checking | L115: 100 | N115: -200
E116: Bill Pmt -Check | F116: 2020-07-30 | G116: 511 | I116: Hartzheim Leasing | J116: 2003 | K116: Checking | L116: 200 | N116: 0
E117: Bill | F117: 2020-08-01 | I117: Hartzheim Leasing | J117: Van lease | K117: 67100 · Rent Expense | M117: 200 | N117: -200
E118: Bill Pmt -Check | F118: 2020-08-30 | G118: 512 | I118: Hartzheim Leasing | J118: 2003 | K118: Checking | L118: 200 | N118: 0
E119: Bill | F119: 2020-09-01 | I119: Hartzheim Leasing | J119: Van lease | K119: 67100 · Rent Expense | M119: 200 | N119: -200
E120: Bill | F120: 2020-09-02 | I120: Brewer Paint Supplies | K120: 64800 · Paint Supplies Expense | M120: 75 | N120: -275
E121: Bill Pmt -Check | F121: 2020-09-30 | G121: 513 | I121: Brewer Paint Supplies | K121: Checking | L121: 75 | N121: -200
E122: Bill Pmt -Check | F122: 2020-09-30 | G122: 514 | I122: Hartzheim Leasing | J122: 2003 | K122: Checking | L122: 200 | N122: 0
E123: Bill | F123: 2020-10-01 | I123: Hartzheim Leasing | J123: Van lease | K123: 67100 · Rent Expense | M123: 200 | N123: -200
E124: Bill Pmt -Check | F124: 2020-10-30 | G124: 515 | I124: Hartzheim Leasing | J124: 2003 | K124: Checking | L124: 200 | N124: 0
E125: Bill | F125: 2020-11-01 | I125: Hartzheim Leasing | J125: Van lease | K125: 67100 · Rent Expense | M125: 200 | N125: -200
E126: Bill Pmt -Check | F126: 2020-11-30 | G126: 516 | I126: Hartzheim Leasing | J126: 2003 | K126: Checking | L126: 200 | N126: 0
E127: Bill | F127: 2020-12-01 | I127: Hartzheim Leasing | J127: Van lease | K127: 67100 · Rent Expense | M127: 200 | N127: -200
E128: Bill | F128: 2020-12-20 | I128: Brewer Paint Supplies | K128: 64800 · Paint Supplies Expense | M128: 50 | N128: -250
E129: Bill Pmt -Check | F129: 2020-12-30 | G129: 517 | I129: Hartzheim Leasing | J129: 2003 | K129: Checking | L129: 200 | N129: -50
B130: Total 21000 · Accounts Payable | L130: =ROUND(SUM(L95:L129),5) -> 3425 | M130: =ROUND(SUM(M95:M129),5) -> 3475 | N130: =N129 -> -50
B131: 30000 · Opening Balance Equity | N131: 0
E132: Deposit | F132: 2020-01-01 | G132: 1001 | I132: YourName | J132: Invested $6,000 in business. | K132: Checking | M132: 6000 | N132: -6000
B133: Total 30000 · Opening Balance Equity | L133: =ROUND(SUM(L131:L132),5) -> 0 | M133: =ROUND(SUM(M131:M132),5) -> 6000 | N133: =N132 -> -6000
B134: 47900 · Sales | N134: 0
E135: Invoice | F135: 2020-01-31 | G135: 1 | I135: Beneficio, Katrina:Dining Room | J135: -MULTIPLE- | K135: 11000 · Accounts Receivable | M135: 3400 | N135: -3400
E136: Invoice | F136: 2020-02-28 | G136: 2 | I136: Beneficio, Katrina:Dining Room | J136: Labor: Mural Painting | K136: 11000 · Accounts Receivable | M136: 3440 | N136: -6840
E137: Invoice | F137: 2020-03-31 | G137: 3 | I137: Beneficio, Katrina:Dining Room | J137: Labor: Mural Painting | K137: 11000 · Accounts Receivable | M137: 3360 | N137: -10200
E138: Invoice | F138: 2020-04-30 | G138: 4 | I138: Whalen, Tom:Foyer | J138: Labor: Faux Painting | K138: 11000 · Accounts Receivable | M138: 3200 | N138: -13400
E139: Invoice | F139: 2020-05-31 | G139: 5 | I139: Whalen, Tom:Foyer | J139: Labor: Faux Painting | K139: 11000 · Accounts Receivable | M139: 3000 | N139: -16400
E140: Invoice | F140: 2020-06-30 | G140: 6 | I140: Beneficio, Katrina:Vaulted Kitchen | J140: Labor: Mural Painting | K140: 11000 · Accounts Receivable | M140: 4000 | N140: -20400
E141: Invoice | F141: 2020-07-31 | G141: 7 | I141: Beneficio, Katrina:Vaulted Kitchen | J141: Labor: Mural Painting | K141: 11000 · Accounts Receivable | M141: 3600 | N141: -24000
E142: Invoice | F142: 2020-08-31 | G142: 8 | I142: Beneficio, Katrina:Vaulted Kitchen | J142: Labor: Mural Painting | K142: 11000 · Accounts Receivable | M142: 3680 | N142: -27680
E143: Invoice | F143: 2020-10-31 | G143: 9 | I143: Whalen, Tom:Screen Porch | J143: Labor: Mural Painting | K143: 11000 · Accounts Receivable | M143: 3400 | N143: -31080
E144: Invoice | F144: 2020-11-30 | G144: 10 | I144: Whalen, Tom:Screen Porch | J144: Labor: Mural Painting | K144: 11000 · Accounts Receivable | M144: 3480 | N144: -34560
B145: Total 47900 · Sales | L145: =ROUND(SUM(L134:L144),5) -> 0 | M145: =ROUND(SUM(M134:M144),5) -> 34560 | N145: =N144 -> -34560
B146: 64800 · Paint Supplies Expense | N146: 0
E147: Bill | F147: 2020-01-03 | I147: Beneficio, Katrina:Dining Room | K147: 21000 · Accounts Payable | L147: 300 | N147: 300
E148: Invoice | F148: 2020-01-31 | G148: 1 | I148: Beneficio, Katrina:Dining Room | K148: 11000 · Accounts Receivable | M148: 300 | N148: 0
E149: Bill | F149: 2020-04-04 | I149: Brewer Paint Supplies | K149: 21000 · Accounts Payable | L149: 50 | N149: 50
E150: Bill | F150: 2020-07-01 | I150: Brewer Paint Supplies | K150: 21000 · Accounts Payable | L150: 100 | N150: 150
E151: Bill | F151: 2020-09-02 | I151: Brewer Paint Supplies | K151: 21000 · Accounts Payable | L151: 75 | N151: 225
E152: Bill | F152: 2020-12-20 | I152: Brewer Paint Supplies | K152: 21000 · Accounts Payable | L152: 50 | N152: 275
B153: Total 64800 · Paint Supplies Expense | L153: =ROUND(SUM(L146:L152),5) -> 575 | M153: =ROUND(SUM(M146:M152),5) -> 300 | N153: =N152 -> 275
B154: 65300 · Depr Expense Computer | N154: 0
E155: General Journal | F155: 2020-12-31 | G155: ADJ1 | H155: Ö | K155: 14300 · Accumulated Depr Computer | L155: 500 | N155: 500
B156: Total 65300 · Depr Expense Computer | L156: =ROUND(SUM(L154:L155),5) -> 500 | M156: =ROUND(SUM(M154:M155),5) -> 0 | N156: =N155 -> 500
B157: 65600 · Depr Expense Equipment | N157: 0
E158: General Journal | F158: 2020-12-31 | G158: ADJ2 | H158: Ö | K158: 14600 · Acc Depr Equipment | L158: 100 | N158: 100
B159: Total 65600 · Depr Expense Equipment | L159: =ROUND(SUM(L157:L158),5) -> 100 | M159: =ROUND(SUM(M157:M158),5) -> 0 | N159: =N158 -> 100
B160: 67100 · Rent Expense | N160: 0
E161: Bill | F161: 2020-01-04 | I161: Hartzheim Leasing | J161: Van lease | K161: 21000 · Accounts Payable | L161: 200 | N161: 200
E162: Bill | F162: 2020-02-01 | I162: Hartzheim Leasing | J162: Van lease | K162: 21000 · Accounts Payable | L162: 200 | N162: 400
E163: Bill | F163: 2020-03-01 | I163: Hartzheim Leasing | J163: Van lease | K163: 21000 · Accounts Payable | L163: 200 | N163: 600
E164: Bill | F164: 2020-04-01 | I164: Hartzheim Leasing | J164: Van lease | K164: 21000 · Accounts Payable | L164: 200 | N164: 800
E165: Bill | F165: 2020-05-01 | I165: Hartzheim Leasing | J165: Van lease | K165: 21000 · Accounts Payable | L165: 200 | N165: 1000
E166: Bill | F166: 2020-06-01 | I166: Hartzheim Leasing | J166: Van lease | K166: 21000 · Accounts Payable | L166: 200 | N166: 1200
E167: Bill | F167: 2020-07-01 | I167: Hartzheim Leasing | J167: Van lease | K167: 21000 · Accounts Payable | L167: 200 | N167: 1400
E168: Bill | F168: 2020-08-01 | I168: Hartzheim Leasing | J168: Van lease | K168: 21000 · Accounts Payable | L168: 200 | N168: 1600
E169: Bill | F169: 2020-09-01 | I169: Hartzheim Leasing | J169: Van lease | K169: 21000 · Accounts Payable | L169: 200 | N169: 1800
E170: Bill | F170: 2020-10-01 | I170: Hartzheim Leasing | J170: Van lease | K170: 21000 · Accounts Payable | L170: 200 | N170: 2000
E171: Bill | F171: 2020-11-01 | I171: Hartzheim Leasing | J171: Van lease | K171: 21000 · Accounts Payable | L171: 200 | N171: 2200
E172: Bill | F172: 2020-12-01 | I172: Hartzheim Leasing | J172: Van lease | K172: 21000 · Accounts Payable | L172: 200 | N172: 2400
B173: Total 67100 · Rent Expense | L173: =ROUND(SUM(L160:L172),5) -> 2400 | M173: =ROUND(SUM(M160:M172),5) -> 0 | N173: =N172 -> 2400
A174: TOTAL | L174: =ROUND(L34+L56+L78+L86+L94+L130+L133+L145+L153+L156+L159+L173,5) -> 119580 | M174: =ROUND(M34+M56+M78+M86+M94+M130+M133+M145+M153+M156+M159+M173,5) -> 119580 | N174: =ROUND(N34+N56+N78+N86+N94+N130+N133+N145+N153+N156+N159+N173,5) -> 0

Sheet EX9.4.3 PL
A1: YourName Exercise 9.4 Paint Palette
A2: Profit & Loss
A3: January through December 2020 | F3: Accrual Basis
F4: Jan - Dec 20
B5: Ordinary Income/Expense
D6: Income
E7: 47900 · Sales | F7: 34560
D8: Total Income | F8: =ROUND(SUM(F6:F7),5) -> 34560
C9: Gross Profit | F9: =F8 -> 34560
D10: Expense
E11: 64800 · Paint Supplies Expense | F11: 275
E12: 65300 · Depr Expense Computer | F12: 500
E13: 65600 · Depr Expense Equipment | F13: 100
E14: 67100 · Rent Expense | F14: 2400
D15: Total Expense | F15: =ROUND(SUM(F10:F14),5) -> 3275
B16: Net Ordinary Income | F16: =ROUND(F5+F9-F15,5) -> 31285
A17: Net Income | F17: =F16 -> 31285

Sheet EX9.4.3 BS
A1: YourName Exercise 9.4 Paint Palette
A2: Balance Sheet
A3: As of December 31, 2020 | F3: Accrual Basis
F4: Dec 31, 20
A5: ASSETS
B6: Current Assets
C7: Checking/Savings
D8: Checking | F8: 35935
C9: Total Checking/Savings | F9: =ROUND(SUM(F7:F8),5) -> 35935
B10: Total Current Assets | F10: =ROUND(F6+F9,5) -> 35935
B11: Fixed Assets
C12: 14100 · Computer
D13: 14200 · Computer Cost | F13: 1500
D14: 14300 · Accumulated Depr Computer | F14: -500
C15: Total 14100 · Computer | F15: =ROUND(SUM(F12:F14),5) -> 1000
C16: 14400 · Equipment
D17: 14500 · Equipment Cost | F17: 500
D18: 14600 · Acc Depr Equipment | F18: -100
C19: Total 14400 · Equipment | F19: =ROUND(SUM(F16:F18),5) -> 400
B20: Total Fixed Assets | F20: =ROUND(F11+F15+F19,5) -> 1400
A21: TOTAL ASSETS | F21: =ROUND(F5+F10+F20,5) -> 37335
A22: LIABILITIES & EQUITY
B23: Liabilities
C24: Current Liabilities
D25: Accounts Payable
E26: 21000 · Accounts Payable | F26: 50
D27: Total Accounts Payable | F27: =ROUND(SUM(F25:F26),5) -> 50
C28: Total Current Liabilities | F28: =ROUND(F24+F27,5) -> 50
B29: Total Liabilities | F29: =ROUND(F23+F28,5) -> 50
B30: Equity
C31: 30000 · Opening Balance Equity | F31: 6000
C32: Net Income | F32: 31285
B33: Total Equity | F33: =ROUND(SUM(F30:F32),5) -> 37285
A34: TOTAL LIABILITIES & EQUITY | F34: =ROUND(F22+F29+F33,5) -> 37335

Sheet EX9.4.3 SCF
A1: YourName Exercise 9.4 Paint Palette
A2: Statement of Cash Flows
A3: January through December 2020
F4: Jan - Dec 20
C5: OPERATING ACTIVITIES
D6: Net Income | F6: 31285
D7: Adjustments to reconcile Net Income
D8: to net cash provided by operations:
E9: 21000 · Accounts Payable | F9: 50
C10: Net cash provided by Operating Activities | F10: =ROUND(SUM(F5:F6)+F9,5) -> 31335
C11: INVESTING ACTIVITIES
D12: 14100 · Computer:14200 · Computer Cost | F12: -1500
D13: 14100 · Computer:14300 · Accumulated Depr Computer | F13: 500
D14: 14400 · Equipment:14500 · Equipment Cost | F14: -500
D15: 14400 · Equipment:14600 · Acc Depr Equipment | F15: 100
C16: Net cash provided by Investing Activities | F16: =ROUND(SUM(F11:F15),5) -> -1400
C17: FINANCING ACTIVITIES
D18: 30000 · Opening Balance Equity | F18: 6000
C19: Net cash provided by Financing Activities | F19: =ROUND(SUM(F17:F18),5) -> 6000
B20: Net cash increase for period | F20: =ROUND(F10+F16+F19,5) -> 35935
A21: Cash at end of period | F21: =F20 -> 35935

Sheet EX9.6.2 COA
A1: YourName Exercise 9.6 Alexandra LLC
A2: Account Listing
A3: All Transactions
B4: Account | C4: Type | D4: Balance Total | E4: Description | F4: Accnt. # | G4: Tax Line
B5: Checking | C5: Bank | D5: 0 | G5: <Unassigned>
B6: 13000 · Cleaning Supplies | C6: Other Current Asset | D6: 0 | E6: Cleaning Supplies | F6: 13000 | G6: <Unassigned>
B7: 14400 · Cleaning Equipment | C7: Fixed Asset | D7: 0 | E7: Cleaning Equipment | F7: 14400 | G7: <Unassigned>
B8: 14400 · Cleaning Equipment:14500 · Cleaning Equipment Cost | C8: Fixed Asset | D8: 0 | E8: Cleaning Equipment Cost | F8: 14500 | G8: <Unassigned>
B9: 14400 · Cleaning Equipment:14600 · Acc Depr Cleaning Equipment | C9: Fixed Asset | D9: 0 | E9: Acc Depr Cleaning Equipment | F9: 14600 | G9: <Unassigned>
B10: 15000 · Furniture and Equipment | C10: Fixed Asset | D10: 0 | E10: Furniture and equipment with useful life exceeding one year | F10: 15000 | G10: <Unassigned>
B11: 17000 · Accumulated Depreciation | C11: Fixed Asset | D11: 0 | E11: Accumulated depreciation on equipment, buildings and improvements | F11: 17000 | G11: <Unassigned>
B12: 21000 · Accounts Payable | C12: Accounts Payable | D12: 0 | E12: Accounts Payable | F12: 21000 | G12: <Unassigned>
B13: 30000 · Opening Balance Equity | C13: Equity | D13: 0 | E13: Opening balances during setup post to this account. The balance of this account should be zero after completing your setup | F13: 30000 | G13: <Unassigned>
B14: 30700 · Members Draw | C14: Equity | D14: 0 | E14: Monies taken out of the business by the member | F14: 30700 | G14: <Unassigned>
B15: 32000 · Members Equity | C15: Equity | E15: Monies invested in the business by the member, and profits kept in company accounts | F15: 32000 | G15: <Unassigned>
B16: 47900 · Sales | C16: Income | E16: Gross receipts from services | F16: 47900 | G16: Schedule C: Gross receipts or sales
B17: 60000 · Advertising and Promotion | C17: Expense | E17: Advertising, marketing, graphic design, and other promotional expenses | F17: 60000 | G17: Schedule C: Advertising
B18: 60200 · Automobile Expense | C18: Expense | E18: Fuel, oil, repairs, and other automobile maintenance for business autos | F18: 60200 | G18: Schedule C: Car and truck expenses
B19: 60400 · Bank Service Charges | C19: Expense | E19: Bank account service fees, bad check charges and other bank fees | F19: 60400 | G19: Schedule C: Other business expenses
B20: 61700 · Computer and Internet Expenses | C20: Expense | E20: Computer supplies, off-the-shelf software, online fees, and other computer or internet related expenses | F20: 61700 | G20: Schedule C: Other business expenses
B21: 62400 · Depreciation Expense | C21: Expense | E21: Depreciation on equipment, buildings and improvements | F21: 62400 | G21: <Unassigned>
B22: 63300 · Insurance Expense | C22: Expense | E22: Insurance expenses | F22: 63300 | G22: Schedule C: Insurance, other than health
B23: 63400 · Interest Expense | C23: Expense | E23: Interest payments on business loans, credit card balances, or other business debt | F23: 63400 | G23: Schedule C: Interest expense, other
B24: 64300 · Meals and Entertainment | C24: Expense | E24: Business meals and entertainment expenses, including travel-related meals (may have limited deductibility) | F24: 64300 | G24: Schedule C: Meals and entertainment
B25: 64800 · Supplies Expense | C25: Expense | E25: Supplies Expense | F25: 64800 | G25: Schedule C: Supplies (not from COGS)
B26: 64900 · Office Supplies | C26: Expense | E26: Office supplies expense | F26: 64900 | G26: Schedule C: Office expenses
B27: 66700 · Professional Fees | C27: Expense | E27: Payments to accounting professionals and attorneys for accounting or legal services | F27: 66700 | G27: Schedule C: Legal and professional fees
B28: 67100 · Rent Expense | C28: Expense | E28: Rent paid for company offices or other structures used in the business | F28: 67100 | G28: Schedule C: Rent/lease vehicles, equip.
B29: 67200 · Repairs and Maintenance | C29: Expense | E29: Incidental repairs and maintenance of business assets that do not add to the value or appreciably prolong its life | F29: 67200 | G29: Schedule C: Repairs and maintenance
B30: 68100 · Telephone Expense | C30: Expense | E30: Telephone and long distance charges, faxing, and other fees Not equipment purchases | F30: 68100 | G30: Schedule C: Utilities
B31: 68400 · Travel Expense | C31: Expense | E31: Business-related travel expenses including airline tickets, taxi fares, hotel and other travel expenses | F31: 68400 | G31: Schedule C: Travel
B32: 68600 · Utilities | C32: Expense | E32: Water, electricity, garbage, and other basic utilities expenses | F32: 68600 | G32: Schedule C: Utilities
B33: 80000 · Ask My Accountant | C33: Other Expense | E33: Transactions to be discussed with accountant, consultant, or tax preparer | F33: 80000 | G33: <Unassigned>

Sheet EX9.6.3 CUST
A1: YourName Exercise 9.6 Alexandra LLC
A2: Customer & Job List
B4: Active Status | C4: Customer | D4: Balance | E4: Balance Total | F4: Company | G4: Mr./Ms./... | H4: First Name | I4: M.I. | J4: Last Name | K4: Primary Contact | L4: Main Phone | M4: Fax | N4: Alt. Phone | O4: Secondary Contact | P4: Job Title | Q4: Main Email | R4: Bill to 1 | S4: Bill to 2 | T4: Bill to 3 | U4: Bill to 4 | V4: Bill to 5 | W4: Ship to 1 | X4: Ship to 2 | Y4: Ship to 3 | Z4: Ship to 4 | AA4: Ship to 5 | AB4: Customer Type | AC4: Terms | AD4: Rep | AE4: Sales Tax Code | AF4: Tax item | AG4: Resale Num | AH4: Account No. | AI4: Credit Limit | AJ4: Job Status | AK4: Job Type | AL4: Job Description | AM4: Start Date | AN4: Projected End | AO4: End Date
B5: Active | C5: Dent, Thomas | D5: 0 | E5: 0 | H5: Thomas | J5: Dent | L5: 415-555-4242 | R5: Thomas Dent | S5: 36 Penny Lane | T5: Bayshore, CA 94326 | AB5: Residential | AC5: Net 15 | AH5: 1005
B6: Active | C6: Dent, Thomas:Oriental Rugs | D6: 0 | E6: 0 | H6: Thomas | J6: Dent | L6: 415-555-4242 | R6: Thomas Dent | S6: 36 Penny Lane | T6: Bayshore, CA 94326 | AB6: Residential | AC6: Net 15 | AH6: 1005 | AJ6: Pending | AK6: Residential | AL6: Oriental rug cleaning

Sheet EX9.6.4 VEN
A1: YourName Exercise 9.6 Alexandra LLC
A2: Vendor List
B4: Active Status | C4: Vendor | D4: Balance | E4: Balance Total | F4: Company | G4: Mr./Ms./... | H4: First Name | I4: M.I. | J4: Last Name | K4: Bill from 1 | L4: Bill from 2 | M4: Bill from 3 | N4: Bill from 4 | O4: Bill from 5 | P4: Ship from 1 | Q4: Ship from 2 | R4: Ship from 3 | S4: Ship from 4 | T4: Ship from 5 | U4: Primary Contact | V4: Job Title | W4: Main Phone | X4: Fax | Y4: Alt. Phone | Z4: Secondary Contact
B5: Active | C5: Blumer Cleaning Supplies | D5: 0 | E5: 0 | F5: Blumer Cleaning Supplies | H5: Charlie | J5: Blumer | K5: Blumer Cleaning Supplies | L5: Charlie Blumer | M5: 72 St. Charles Blvd | N5: Bayshore, CA 94326 | W5: 415-555-7272

Sheet EX9.6.5 ITEM
A1: YourName Exercise 9.6 Alexandra LLC
A2: Item Listing
A3: January 1, 2020
B4: Item | C4: Description | D4: Type | E4: Cost | F4: Price | G4: Sales Tax Code | H4: Preferred Vendor
B5: Rug Cleaning | C5: Oriental Rug Cleaning | D5: Service | E5: 0 | F5: 0
B6: Rug Cleaning:3x5 Rug Cleaning | C6: 3x5 Oriental Rug Cleaning | D6: Service | E6: 0 | F6: 50
B7: Rug Cleaning:5x7 Rug Cleaning | C7: 5x7 Oriental Rug Cleaning | D7: Service | E7: 0 | F7: 100
B8: Rug Cleaning:8x10 Rug Cleaning | C8: 8x10 Oriental Rug Cleaning | D8: Service | E8: 0 | F8: 150

Sheet EX9.6.7 CKS
A1: YourName Exercise 9.6 Alexandra LLC
A2: Check Detail
A3: All Transactions
B4: Type | C4: Num | D4: Date | E4: Name | F4: Item | G4: Account | H4: Paid Amount | I4: Original Amount
B6: Check | C6: 5001 | D6: 2020-01-02 | E6: Blumer Cleaning Supplies | G6: Checking | I6: -900
G8: 14500 · Cleaning Equipment Cost | H8: -900 | I8: 900
A9: TOTAL | H9: =ROUND(SUM(H7:H8),5) -> -900 | I9: =ROUND(SUM(I7:I8),5) -> 900
B11: Bill Pmt -Check | C11: 5002 | D11: 2020-01-20 | E11: Blumer Cleaning Supplies | G11: Checking | I11: -100
B13: Bill | D13: 2020-01-05 | G13: 64800 · Supplies Expense | H13: -100 | I13: 100
A14: TOTAL | H14: =ROUND(SUM(H12:H13),5) -> -100 | I14: =ROUND(SUM(I12:I13),5) -> 100

Sheet EX9.6.7 DEP
A1: YourName Exercise 9.6 Alexandra LLC
A2: Deposit Detail
A3: January 2020
B4: Type | C4: Num | D4: Date | E4: Name | F4: Account | G4: Amount
B6: Deposit | D6: 2020-01-01 | F6: Checking | G6: 5000
E8: Alexandra Simon | F8: 30000 · Opening Balance Equity | G8: -5000
A9: TOTAL | G9: =ROUND(SUM(G7:G8),5) -> -5000
B11: Deposit | D11: 2020-01-29 | F11: Checking | G11: 1000
B13: Payment | C13: 580 | D13: 2020-01-29 | E13: Dent, Thomas:Oriental Rugs | F13: 12000 · Undeposited Funds | G13: -1000
A14: TOTAL | G14: =ROUND(SUM(G12:G13),5) -> -1000

Sheet EX9.6.8 JOUR
A1: YourName Exercise 9.6 Alexandra LLC
A2: Journal
A3: January 2020
B4: Trans # | C4: Type | D4: Date | E4: Num | F4: Adj | G4: Name | H4: Memo | I4: Account | J4: Debit | K4: Credit
B5: 1 | C5: Deposit | D5: 2020-01-01 | H5: Deposit | I5: Checking | J5: 5000
G6: Alexandra Simon | H6: Deposit | I6: 30000 · Opening Balance Equity | K6: 5000
J7: =ROUND(SUM(J5:J6),5) -> 5000 | K7: =ROUND(SUM(K5:K6),5) -> 5000
B8: 2 | C8: Check | D8: 2020-01-02 | E8: 5001 | G8: Blumer Cleaning Supplies | H8: 2004 | I8: Checking | K8: 900
G9: Blumer Cleaning Supplies | H9: 2004 | I9: 14500 · Cleaning Equipment Cost | J9: 900
J10: =ROUND(SUM(J8:J9),5) -> 900 | K10: =ROUND(SUM(K8:K9),5) -> 900
B11: 3 | C11: Bill | D11: 2020-01-05 | G11: Blumer Cleaning Supplies | I11: 21000 · Accounts Payable | K11: 100
G12: Blumer Cleaning Supplies | I12: 64800 · Supplies Expense | J12: 100
J13: =ROUND(SUM(J11:J12),5) -> 100 | K13: =ROUND(SUM(K11:K12),5) -> 100
B14: 4 | C14: Invoice | D14: 2020-01-09 | E14: 1 | G14: Dent, Thomas:Oriental Rugs | I14: 11000 · Accounts Receivable | J14: 1000
G15: Dent, Thomas:Oriental Rugs | H15: -MULTIPLE- | I15: 47900 · Sales | K15: 1000
J16: =ROUND(SUM(J14:J15),5) -> 1000 | K16: =ROUND(SUM(K14:K15),5) -> 1000
B17: 5 | C17: Bill Pmt -Check | D17: 2020-01-20 | E17: 5002 | G17: Blumer Cleaning Supplies | H17: 2004 | I17: Checking | K17: 100
G18: Blumer Cleaning Supplies | H18: 2004 | I18: 21000 · Accounts Payable | J18: 100
J19: =ROUND(SUM(J17:J18),5) -> 100 | K19: =ROUND(SUM(K17:K18),5) -> 100
B20: 6 | C20: Payment | D20: 2020-01-29 | E20: 580 | G20: Dent, Thomas:Oriental Rugs | I20: 12000 · Undeposited Funds | J20: 1000
G21: Dent, Thomas:Oriental Rugs | I21: 11000 · Accounts Receivable | K21: 1000
J22: =ROUND(SUM(J20:J21),5) -> 1000 | K22: =ROUND(SUM(K20:K21),5) -> 1000
B23: 7 | C23: Deposit | D23: 2020-01-29 | H23: Deposit | I23: Checking | J23: 1000
G24: Dent, Thomas:Oriental Rugs | H24: Deposit | I24: 12000 · Undeposited Funds | K24: 1000
J25: =ROUND(SUM(J23:J24),5) -> 1000 | K25: =ROUND(SUM(K23:K24),5) -> 1000
B26: 8 | C26: General Journal | D26: 2020-01-31 | E26: ADJ1 | F26: Ö | I26: 62400 · Depreciation Expense | J26: 25
F27: Ö | I27: 14600 · Acc Depr Cleaning Equipment | K27: 25
J28: =ROUND(SUM(J26:J27),5) -> 25 | K28: =ROUND(SUM(K26:K27),5) -> 25
A29: TOTAL | J29: =ROUND(J7+J10+J13+J16+J19+J22+J25+J28,5) -> 9125 | K29: =ROUND(K7+K10+K13+K16+K19+K22+K25+K28,5) -> 9125

Sheet EX9.6.9 ADJTB
A1: YourName Exercise 9.6 Alexandra LLC
A2: Adjusted Trial Balance
A3: January 31, 2020 | H3: Accrual Basis
C4: Unadjusted Balance | E4: Adjustments | G4: Adjusted Balance
C5: Debit | D5: Credit | E5: Debit | F5: Credit | G5: Debit | H5: Credit
B6: Checking | C6: 5000 | G6: 5000
B7: 11000 · Accounts Receivable | C7: 0 | G7: 0
B8: 12000 · Undeposited Funds | C8: 0 | G8: 0
B9: 14400 · Cleaning Equipment:14500 · Cleaning Equipment Cost | C9: 900 | G9: 900
B10: 14400 · Cleaning Equipment:14600 · Acc Depr Cleaning Equipment | F10: 25 | H10: 25
B11: 21000 · Accounts Payable | C11: 0 | G11: 0
B12: 30000 · Opening Balance Equity | D12: 5000 | H12: 5000
B13: 47900 · Sales | D13: 1000 | H13: 1000
B14: 62400 · Depreciation Expense | E14: 25 | G14: 25
B15: 64800 · Supplies Expense | C15: 100 | G15: 100
A16: TOTAL | C16: =ROUND(SUM(C6:C15),5) -> 6000 | D16: 6000 | E16: 25 | F16: 25 | G16: 6025 | H16: 6025

Sheet EX9.6.9 GL
A1: YourName Exercise 9.6 Alexandra LLC
A2: General Ledger
A3: As of January 31, 2020 | N3: Accrual Basis
E4: Type | F4: Date | G4: Num | H4: Adj | I4: Name | J4: Memo | K4: Split | L4: Debit | M4: Credit | N4: Balance
B5: Checking | N5: 0
E6: Deposit | F6: 2020-01-01 | J6: Deposit | K6: 30000 · Opening Balance Equity | L6: 5000 | N6: 5000
E7: Check | F7: 2020-01-02 | G7: 5001 | I7: Blumer Cleaning Supplies | J7: 2004 | K7: 14500 · Cleaning Equipment Cost | M7: 900 | N7: 4100
E8: Bill Pmt -Check | F8: 2020-01-20 | G8: 5002 | I8: Blumer Cleaning Supplies | J8: 2004 | K8: 21000 · Accounts Payable | M8: 100 | N8: 4000
E9: Deposit | F9: 2020-01-29 | J9: Deposit | K9: 12000 · Undeposited Funds | L9: 1000 | N9: 5000
B10: Total Checking | L10: =ROUND(SUM(L5:L9),5) -> 6000 | M10: =ROUND(SUM(M5:M9),5) -> 1000 | N10: =N9 -> 5000
B11: 11000 · Accounts Receivable | N11: 0
E12: Invoice | F12: 2020-01-09 | G12: 1 | I12: Dent, Thomas:Oriental Rugs | K12: -SPLIT- | L12: 1000 | N12: 1000
E13: Payment | F13: 2020-01-29 | G13: 580 | I13: Dent, Thomas:Oriental Rugs | K13: 12000 · Undeposited Funds | M13: 1000 | N13: 0
B14: Total 11000 · Accounts Receivable | L14: =ROUND(SUM(L11:L13),5) -> 1000 | M14: =ROUND(SUM(M11:M13),5) -> 1000 | N14: =N13 -> 0
B15: 12000 · Undeposited Funds | N15: 0
E16: Payment | F16: 2020-01-29 | G16: 580 | I16: Dent, Thomas:Oriental Rugs | K16: 11000 · Accounts Receivable | L16: 1000 | N16: 1000
E17: Deposit | F17: 2020-01-29 | G17: 580 | I17: Dent, Thomas:Oriental Rugs | J17: Deposit | K17: Checking | M17: 1000 | N17: 0
B18: Total 12000 · Undeposited Funds | L18: =ROUND(SUM(L15:L17),5) -> 1000 | M18: =ROUND(SUM(M15:M17),5) -> 1000 | N18: =N17 -> 0
B19: 14400 · Cleaning Equipment | N19: 0
C20: 14500 · Cleaning Equipment Cost | N20: 0
E21: Check | F21: 2020-01-02 | G21: 5001 | I21: Blumer Cleaning Supplies | J21: 2004 | K21: Checking | L21: 900 | N21: 900
C22: Total 14500 · Cleaning Equipment Cost | L22: =ROUND(SUM(L20:L21),5) -> 900 | M22: =ROUND(SUM(M20:M21),5) -> 0 | N22: =N21 -> 900
C23: 14600 · Acc Depr Cleaning Equipment | N23: 0
E24: General Journal | F24: 2020-01-31 | G24: ADJ1 | H24: Ö | K24: 62400 · Depreciation Expense | M24: 25 | N24: -25
C25: Total 14600 · Acc Depr Cleaning Equipment | L25: =ROUND(SUM(L23:L24),5) -> 0 | M25: =ROUND(SUM(M23:M24),5) -> 25 | N25: =N24 -> -25
B26: Total 14400 · Cleaning Equipment | L26: =ROUND(L22+L25,5) -> 900 | M26: =ROUND(M22+M25,5) -> 25 | N26: =ROUND(N22+N25,5) -> 875
B27: 21000 · Accounts Payable | N27: 0
E28: Bill | F28: 2020-01-05 | I28: Blumer Cleaning Supplies | K28: 64800 · Supplies Expense | M28: 100 | N28: -100
E29: Bill Pmt -Check | F29: 2020-01-20 | G29: 5002 | I29: Blumer Cleaning Supplies | J29: 2004 | K29: Checking | L29: 100 | N29: 0
B30: Total 21000 · Accounts Payable | L30: =ROUND(SUM(L27:L29),5) -> 100 | M30: =ROUND(SUM(M27:M29),5) -> 100 | N30: =N29 -> 0
B31: 30000 · Opening Balance Equity | N31: 0
E32: Deposit | F32: 2020-01-01 | I32: Alexandra Simon | J32: Deposit | K32: Checking | M32: 5000 | N32: -5000
B33: Total 30000 · Opening Balance Equity | L33: =ROUND(SUM(L31:L32),5) -> 0 | M33: =ROUND(SUM(M31:M32),5) -> 5000 | N33: =N32 -> -5000
B34: 47900 · Sales | N34: 0
E35: Invoice | F35: 2020-01-09 | G35: 1 | I35: Dent, Thomas:Oriental Rugs | J35: -MULTIPLE- | K35: 11000 · Accounts Receivable | M35: 1000 | N35: -1000
B36: Total 47900 · Sales | L36: =ROUND(SUM(L34:L35),5) -> 0 | M36: =ROUND(SUM(M34:M35),5) -> 1000 | N36: =N35 -> -1000
B37: 62400 · Depreciation Expense | N37: 0
E38: General Journal | F38: 2020-01-31 | G38: ADJ1 | H38: Ö | K38: 14600 · Acc Depr Cleaning Equipment | L38: 25 | N38: 25
B39: Total 62400 · Depreciation Expense | L39: =ROUND(SUM(L37:L38),5) -> 25 | M39: =ROUND(SUM(M37:M38),5) -> 0 | N39: =N38 -> 25
B40: 64800 · Supplies Expense | N40: 0
E41: Bill | F41: 2020-01-05 | I41: Blumer Cleaning Supplies | K41: 21000 · Accounts Payable | L41: 100 | N41: 100
B42: Total 64800 · Supplies Expense | L42: =ROUND(SUM(L40:L41),5) -> 100 | M42: =ROUND(SUM(M40:M41),5) -> 0 | N42: =N41 -> 100
A43: TOTAL | L43: =ROUND(L10+L14+L18+L26+L30+L33+L36+L39+L42,5) -> 9125 | M43: =ROUND(M10+M14+M18+M26+M30+M33+M36+M39+M42,5) -> 9125 | N43: =ROUND(N10+N14+N18+N26+N30+N33+N36+N39+N42,5) -> 0

Sheet EX9.6.9 PL
A1: YourName Exercise 9.6 Alexandra LLC
A2: Profit & Loss
A3: January 2020 | E3: Accrual Basis
E4: Jan 20
B5: Ordinary Income/Expense
C6: Income
D7: 47900 · Sales | E7: 1000
C8: Total Income | E8: =ROUND(SUM(E6:E7),5) -> 1000
C9: Expense
D10: 62400 · Depreciation Expense | E10: 25
D11: 64800 · Supplies Expense | E11: 100
C12: Total Expense | E12: =ROUND(SUM(E9:E11),5) -> 125
B13: Net Ordinary Income | E13: =ROUND(E5+E8-E12,5) -> 875
A14: Net Income | E14: =E13 -> 875

Sheet EX9.6.9 BS
A1: YourName Exercise 9.6 Alexandra LLC
A2: Balance Sheet
A3: As of January 31, 2020 | E3: Accrual Basis
E4: Jan 31, 20
A5: ASSETS
B6: Current Assets
C7: Checking/Savings
D8: Checking | E8: 5000
C9: Total Checking/Savings | E9: =ROUND(SUM(E7:E8),5) -> 5000
B10: Total Current Assets | E10: =ROUND(E6+E9,5) -> 5000
B11: Fixed Assets
C12: 14400 · Cleaning Equipment
D13: 14500 · Cleaning Equipment Cost | E13: 900
D14: 14600 · Acc Depr Cleaning Equipment | E14: -25
C15: Total 14400 · Cleaning Equipment | E15: =ROUND(SUM(E12:E14),5) -> 875
B16: Total Fixed Assets | E16: =ROUND(E11+E15,5) -> 875
A17: TOTAL ASSETS | E17: =ROUND(E5+E10+E16,5) -> 5875
A18: LIABILITIES & EQUITY
B19: Equity
C20: 30000 · Opening Balance Equity | E20: 5000
C21: Net Income | E21: 875
B22: Total Equity | E22: =ROUND(SUM(E19:E21),5) -> 5875
A23: TOTAL LIABILITIES & EQUITY | E23: =ROUND(E18+E22,5) -> 5875

Sheet EX9.6.9 SCF
A1: YourName Exercise 9.6 Alexandra LLC
A2: Statement of Cash Flows
A3: January 2020
E4: Jan 20
C5: OPERATING ACTIVITIES
D6: Net Income | E6: 875
C7: Net cash provided by Operating Activities | E7: =ROUND(SUM(E5:E6),5) -> 875
C8: INVESTING ACTIVITIES
D9: 14400 · Cleaning Equipment:14500 · Cleaning Equipment Cost | E9: -900
D10: 14400 · Cleaning Equipment:14600 · Acc Depr Cleaning Equipment | E10: 25
C11: Net cash provided by Investing Activities | E11: =ROUND(SUM(E8:E10),5) -> -875
C12: FINANCING ACTIVITIES
D13: 30000 · Opening Balance Equity | E13: 5000
C14: Net cash provided by Financing Activities | E14: =ROUND(SUM(E12:E13),5) -> 5000
B15: Net cash increase for period | E15: =ROUND(E7+E11+E14,5) -> 5000
A16: Cash at end of period | E16: =E15 -> 5000

Sheet PR9.3 DEP
A1: YourName Project 9 Dominic Consulting
A2: Deposit Detail
A3: January 2020
B4: Type | C4: Num | D4: Date | E4: Name | F4: Account | G4: Amount
B6: Deposit | D6: 2020-01-01 | F6: Checking | G6: 5000
E8: Dominic Leonardo | F8: 30000 · Opening Balance Equity | G8: -5000
A9: TOTAL | G9: =ROUND(SUM(G7:G8),5) -> -5000
B11: Deposit | D11: 2020-01-20 | F11: Checking | G11: 800
B13: Payment | C13: 589 | D13: 2020-01-20 | E13: Redeker Bed & Breakfast | F13: 12000 · Undeposited Funds | G13: -800
A14: TOTAL | G14: =ROUND(SUM(G12:G13),5) -> -800
B16: Deposit | D16: 2020-01-22 | F16: Checking | G16: 650
B18: Payment | C18: 935 | D18: 2020-01-22 | E18: Etzkin Realty | F18: 12000 · Undeposited Funds | G18: -650
A19: TOTAL | G19: =ROUND(SUM(G17:G18),5) -> -650
B21: Deposit | D21: 2020-01-23 | F21: Checking | G21: 500
B23: Payment | C23: 1245 | D23: 2020-01-23 | E23: Holcomb Health Foods | F23: 12000 · Undeposited Funds | G23: -500
A24: TOTAL | G24: =ROUND(SUM(G22:G23),5) -> -500
B26: Deposit | D26: 2020-01-28 | F26: Checking | G26: 900
B28: Payment | C28: 876 | D28: 2020-01-28 | E28: Etzkin Realty | F28: 12000 · Undeposited Funds | G28: -900
A29: TOTAL | G29: =ROUND(SUM(G27:G28),5) -> -900

Sheet PR9.4 CKS
A1: YourName Project 9 Dominic Consulting
A2: Check Detail
A3: January 2020
B4: Type | C4: Num | D4: Date | E4: Name | F4: Item | G4: Account | H4: Paid Amount | I4: Original Amount
B6: Bill Pmt -Check | C6: 101 | D6: 2020-01-01 | E6: Pitts Leasing | G6: Checking | I6: -800
B8: Bill | D8: 2020-01-01 | G8: 67100 · Rent Expense | H8: -800 | I8: 800
A9: TOTAL | H9: =ROUND(SUM(H7:H8),5) -> -800 | I9: =ROUND(SUM(I7:I8),5) -> 800
B11: Bill Pmt -Check | C11: 102 | D11: 2020-01-20 | E11: Jackson Computer Services | G11: Checking | I11: -100
B13: Bill | D13: 2020-01-20 | G13: 64900 · Office Supplies | H13: -100 | I13: 100
A14: TOTAL | H14: =ROUND(SUM(H12:H13),5) -> -100 | I14: =ROUND(SUM(I12:I13),5) -> 100
B16: Bill Pmt -Check | C16: 103 | D16: 2020-01-24 | E16: Jackson Computer Services | G16: Checking | I16: -200
B18: Bill | D18: 2020-01-24 | G18: 64900 · Office Supplies | H18: -200 | I18: 200
A19: TOTAL | H19: =ROUND(SUM(H17:H18),5) -> -200 | I19: =ROUND(SUM(I17:I18),5) -> 200
B21: Bill Pmt -Check | C21: 104 | D21: 2020-01-31 | E21: Jackson Computer Services | G21: Checking | I21: -2100
B23: Bill | D23: 2020-01-02 | G23: 15000 · Furniture and Equipment | H23: -2100 | I23: 2100
A24: TOTAL | H24: =ROUND(SUM(H22:H23),5) -> -2100 | I24: =ROUND(SUM(I22:I23),5) -> 2100

Sheet PR9.5 TB
A1: YourName Project 9 Dominic Consulting
A2: Trial Balance
A3: As of January 31, 2020 | D3: Accrual Basis
C4: Jan 31, 20
C5: Debit | D5: Credit
B6: Checking | C6: 4650
B7: 11000 · Accounts Receivable | C7: 1520
B8: 12000 · Undeposited Funds | C8: 0
B9: 15000 · Furniture and Equipment | C9: 2650
B10: 20000 · Accounts Payable | D10: 550
B11: 30000 · Opening Balance Equity | D11: 5000
B12: 47900 · Sales | D12: 4370
B13: 64900 · Office Supplies | C13: 300
B14: 67100 · Rent Expense | C14: 800
A15: TOTAL | C15: =ROUND(SUM(C6:C14),5) -> 9920 | D15: =ROUND(SUM(D6:D14),5) -> 9920

Sheet PR9.6 ADJ
A1: YourName Project 9 Dominic Consulting
A2: Adjusting Journal Entries
A3: January 31, 2020 | H3: Accrual Basis
B4: Date | C4: Num | D4: Name | E4: Memo | F4: Account | G4: Debit | H4: Credit
B5: 2020-01-31 | C5: ADJ1 | F5: 62400 · Depreciation Expense | G5: 87.5
F6: 17000 · Accumulated Depreciation | H6: 87.5
G7: =ROUND(SUM(G5:G6),5) -> 87.5 | H7: =ROUND(SUM(H5:H6),5) -> 87.5
B8: 2020-01-31 | C8: ADJ2 | F8: 62400 · Depreciation Expense | G8: 15.28
F9: 17000 · Accumulated Depreciation | H9: 15.28
G10: =ROUND(SUM(G8:G9),5) -> 15.28 | H10: =ROUND(SUM(H8:H9),5) -> 15.28
B11: 2020-01-31 | C11: ADJ3 | F11: 13000 · Office Supplies on Hand | G11: 60
F12: 64900 · Office Supplies | H12: 60
G13: =ROUND(SUM(G11:G12),5) -> 60 | H13: =ROUND(SUM(H11:H12),5) -> 60
A14: TOTAL | G14: =ROUND(G7+G10+G13,5) -> 162.78 | H14: =ROUND(H7+H10+H13,5) -> 162.78

Sheet PR9.7 ADJTB
A1: YourName Project 9 Dominic Consulting
A2: Adjusted Trial Balance
A3: January 31, 2020 | H3: Accrual Basis
C4: Unadjusted Balance | E4: Adjustments | G4: Adjusted Balance
C5: Debit | D5: Credit | E5: Debit | F5: Credit | G5: Debit | H5: Credit
B6: Checking | C6: 4650 | G6: 4650
B7: 11000 · Accounts Receivable | C7: 1520 | G7: 1520
B8: 12000 · Undeposited Funds | C8: 0 | G8: 0
B9: 13000 · Office Supplies on Hand | E9: 60 | G9: 60
B10: 15000 · Furniture and Equipment | C10: 2650 | G10: 2650
B11: 17000 · Accumulated Depreciation | F11: 102.78 | H11: 102.78
B12: 20000 · Accounts Payable | D12: 550 | H12: 550
B13: 30000 · Opening Balance Equity | D13: 5000 | H13: 5000
B14: 47900 · Sales | D14: 4370 | H14: 4370
B15: 62400 · Depreciation Expense | E15: 102.78 | G15: 102.78
B16: 64900 · Office Supplies | C16: 300 | F16: 60 | G16: 240
B17: 67100 · Rent Expense | C17: 800 | G17: 800
A18: TOTAL | C18: =ROUND(SUM(C6:C17),5) -> 9920 | D18: 9920 | E18: 162.78 | F18: 162.78 | G18: 10022.78 | H18: 10022.78

Sheet PR9.8 GL
A1: YourName Project 9 Dominic Consulting
A2: General Ledger
A3: As of January 31, 2020 | M3: Accrual Basis
D4: Type | E4: Date | F4: Num | G4: Adj | H4: Name | I4: Memo | J4: Split | K4: Debit | L4: Credit | M4: Balance
B5: Checking | M5: 0
D6: Deposit | E6: 2020-01-01 | I6: Deposit | J6: 30000 · Opening Balance Equity | K6: 5000 | M6: 5000
D7: Bill Pmt -Check | E7: 2020-01-01 | F7: 101 | H7: Pitts Leasing | I7: 2002 | J7: 20000 · Accounts Payable | L7: 800 | M7: 4200
D8: Bill Pmt -Check | E8: 2020-01-20 | F8: 102 | H8: Jackson Computer Services | I8: 2001 | J8: 20000 · Accounts Payable | L8: 100 | M8: 4100
D9: Deposit | E9: 2020-01-20 | I9: Deposit | J9: 12000 · Undeposited Funds | K9: 800 | M9: 4900
D10: Deposit | E10: 2020-01-22 | I10: Deposit | J10: 12000 · Undeposited Funds | K10: 650 | M10: 5550
D11: Deposit | E11: 2020-01-23 | I11: Deposit | J11: 12000 · Undeposited Funds | K11: 500 | M11: 6050
D12: Bill Pmt -Check | E12: 2020-01-24 | F12: 103 | H12: Jackson Computer Services | I12: 2001 | J12: 20000 · Accounts Payable | L12: 200 | M12: 5850
D13: Deposit | E13: 2020-01-28 | I13: Deposit | J13: 12000 · Undeposited Funds | K13: 900 | M13: 6750
D14: Bill Pmt -Check | E14: 2020-01-31 | F14: 104 | H14: Jackson Computer Services | I14: 2001 | J14: 20000 · Accounts Payable | L14: 2100 | M14: 4650
B15: Total Checking | K15: =ROUND(SUM(K5:K14),5) -> 7850 | L15: =ROUND(SUM(L5:L14),5) -> 3200 | M15: =M14 -> 4650
B16: 11000 · Accounts Receivable | M16: 0
D17: Invoice | E17: 2020-01-06 | F17: 1 | H17: Redeker Bed & Breakfast | J17: -SPLIT- | K17: 800 | M17: 800
D18: Invoice | E18: 2020-01-08 | F18: 2 | H18: Etzkin Realty | J18: -SPLIT- | K18: 650 | M18: 1450
D19: Invoice | E19: 2020-01-10 | F19: 3 | H19: Holcomb Health Foods | J19: 47900 · Sales | K19: 500 | M19: 1950
D20: Invoice | E20: 2020-01-15 | F20: 4 | H20: Etzkin Realty | J20: 47900 · Sales | K20: 900 | M20: 2850
D21: Payment | E21: 2020-01-20 | F21: 589 | H21: Redeker Bed & Breakfast | J21: 12000 · Undeposited Funds | L21: 800 | M21: 2050
D22: Invoice | E22: 2020-01-22 | F22: 5 | H22: Redeker Bed & Breakfast | J22: 47900 · Sales | K22: 600 | M22: 2650
D23: Payment | E23: 2020-01-22 | F23: 935 | H23: Etzkin Realty | J23: 12000 · Undeposited Funds | L23: 650 | M23: 2000
D24: Payment | E24: 2020-01-23 | F24: 1245 | H24: Holcomb Health Foods | J24: 12000 · Undeposited Funds | L24: 500 | M24: 1500
D25: Invoice | E25: 2020-01-27 | F25: 6 | H25: Holcomb Health Foods | J25: -SPLIT- | K25: 920 | M25: 2420
D26: Payment | E26: 2020-01-28 | F26: 876 | H26: Etzkin Realty | J26: 12000 · Undeposited Funds | L26: 900 | M26: 1520
B27: Total 11000 · Accounts Receivable | K27: =ROUND(SUM(K16:K26),5) -> 4370 | L27: =ROUND(SUM(L16:L26),5) -> 2850 | M27: =M26 -> 1520
B28: 12000 · Undeposited Funds | M28: 0
D29: Payment | E29: 2020-01-20 | F29: 589 | H29: Redeker Bed & Breakfast | J29: 11000 · Accounts Receivable | K29: 800 | M29: 800
D30: Deposit | E30: 2020-01-20 | F30: 589 | H30: Redeker Bed & Breakfast | I30: Deposit | J30: Checking | L30: 800 | M30: 0
D31: Payment | E31: 2020-01-22 | F31: 935 | H31: Etzkin Realty | J31: 11000 · Accounts Receivable | K31: 650 | M31: 650
D32: Deposit | E32: 2020-01-22 | F32: 935 | H32: Etzkin Realty | I32: Deposit | J32: Checking | L32: 650 | M32: 0
D33: Payment | E33: 2020-01-23 | F33: 1245 | H33: Holcomb Health Foods | J33: 11000 · Accounts Receivable | K33: 500 | M33: 500
D34: Deposit | E34: 2020-01-23 | F34: 1245 | H34: Holcomb Health Foods | I34: Deposit | J34: Checking | L34: 500 | M34: 0
D35: Payment | E35: 2020-01-28 | F35: 876 | H35: Etzkin Realty | J35: 11000 · Accounts Receivable | K35: 900 | M35: 900
D36: Deposit | E36: 2020-01-28 | F36: 876 | H36: Etzkin Realty | I36: Deposit | J36: Checking | L36: 900 | M36: 0
B37: Total 12000 · Undeposited Funds | K37: =ROUND(SUM(K28:K36),5) -> 2850 | L37: =ROUND(SUM(L28:L36),5) -> 2850 | M37: =M36 -> 0
B38: 13000 · Office Supplies on Hand | M38: 0
D39: General Journal | E39: 2020-01-31 | F39: ADJ3 | G39: Ö | J39: 64900 · Office Supplies | K39: 60 | M39: 60
B40: Total 13000 · Office Supplies on Hand | K40: =ROUND(SUM(K38:K39),5) -> 60 | L40: =ROUND(SUM(L38:L39),5) -> 0 | M40: =M39 -> 60
B41: 15000 · Furniture and Equipment | M41: 0
D42: Bill | E42: 2020-01-02 | H42: Jackson Computer Services | J42: 20000 · Accounts Payable | K42: 2100 | M42: 2100
D43: Bill | E43: 2020-01-03 | H43: Jackson Computer Services | J43: 20000 · Accounts Payable | K43: 550 | M43: 2650
B44: Total 15000 · Furniture and Equipment | K44: =ROUND(SUM(K41:K43),5) -> 2650 | L44: =ROUND(SUM(L41:L43),5) -> 0 | M44: =M43 -> 2650
B45: 17000 · Accumulated Depreciation | M45: 0
D46: General Journal | E46: 2020-01-31 | F46: ADJ1 | G46: Ö | J46: 62400 · Depreciation Expense | L46: 87.5 | M46: -87.5
D47: General Journal | E47: 2020-01-31 | F47: ADJ2 | G47: Ö | J47: 62400 · Depreciation Expense | L47: 15.28 | M47: -102.78
B48: Total 17000 · Accumulated Depreciation | K48: =ROUND(SUM(K45:K47),5) -> 0 | L48: =ROUND(SUM(L45:L47),5) -> 102.78 | M48: =M47 -> -102.78
B49: 20000 · Accounts Payable | M49: 0
D50: Bill | E50: 2020-01-01 | H50: Pitts Leasing | J50: 67100 · Rent Expense | L50: 800 | M50: -800
D51: Bill Pmt -Check | E51: 2020-01-01 | F51: 101 | H51: Pitts Leasing | I51: 2002 | J51: Checking | K51: 800 | M51: 0
D52: Bill | E52: 2020-01-02 | H52: Jackson Computer Services | J52: 15000 · Furniture and Equipment | L52: 2100 | M52: -2100
D53: Bill | E53: 2020-01-03 | H53: Jackson Computer Services | J53: 15000 · Furniture and Equipment | L53: 550 | M53: -2650
D54: Bill | E54: 2020-01-20 | H54: Jackson Computer Services | J54: 64900 · Office Supplies | L54: 100 | M54: -2750
D55: Bill Pmt -Check | E55: 2020-01-20 | F55: 102 | H55: Jackson Computer Services | I55: 2001 | J55: Checking | K55: 100 | M55: -2650
D56: Bill | E56: 2020-01-24 | H56: Jackson Computer Services | J56: 64900 · Office Supplies | L56: 200 | M56: -2850
D57: Bill Pmt -Check | E57: 2020-01-24 | F57: 103 | H57: Jackson Computer Services | I57: 2001 | J57: Checking | K57: 200 | M57: -2650
D58: Bill Pmt -Check | E58: 2020-01-31 | F58: 104 | H58: Jackson Computer Services | I58: 2001 | J58: Checking | K58: 2100 | M58: -550
B59: Total 20000 · Accounts Payable | K59: =ROUND(SUM(K49:K58),5) -> 3200 | L59: =ROUND(SUM(L49:L58),5) -> 3750 | M59: =M58 -> -550
B60: 30000 · Opening Balance Equity | M60: 0
D61: Deposit | E61: 2020-01-01 | F61: 432 | H61: Dominic Leonardo | I61: Deposit | J61: Checking | L61: 5000 | M61: -5000
B62: Total 30000 · Opening Balance Equity | K62: =ROUND(SUM(K60:K61),5) -> 0 | L62: =ROUND(SUM(L60:L61),5) -> 5000 | M62: =M61 -> -5000
B63: 47900 · Sales | M63: 0
D64: Invoice | E64: 2020-01-06 | F64: 1 | H64: Redeker Bed & Breakfast | I64: -MULTIPLE- | J64: 11000 · Accounts Receivable | L64: 800 | M64: -800
D65: Invoice | E65: 2020-01-08 | F65: 2 | H65: Etzkin Realty | I65: -MULTIPLE- | J65: 11000 · Accounts Receivable | L65: 650 | M65: -1450
D66: Invoice | E66: 2020-01-10 | F66: 3 | H66: Holcomb Health Foods | I66: Internet Marketing Consulting | J66: 11000 · Accounts Receivable | L66: 500 | M66: -1950
D67: Invoice | E67: 2020-01-15 | F67: 4 | H67: Etzkin Realty | I67: Social Network Marketing Consulting | J67: 11000 · Accounts Receivable | L67: 900 | M67: -2850
D68: Invoice | E68: 2020-01-22 | F68: 5 | H68: Redeker Bed & Breakfast | I68: Internet Marketing Consulting | J68: 11000 · Accounts Receivable | L68: 600 | M68: -3450
D69: Invoice | E69: 2020-01-27 | F69: 6 | H69: Holcomb Health Foods | I69: -MULTIPLE- | J69: 11000 · Accounts Receivable | L69: 920 | M69: -4370
B70: Total 47900 · Sales | K70: =ROUND(SUM(K63:K69),5) -> 0 | L70: =ROUND(SUM(L63:L69),5) -> 4370 | M70: =M69 -> -4370
B71: 62400 · Depreciation Expense | M71: 0
D72: General Journal | E72: 2020-01-31 | F72: ADJ1 | G72: Ö | J72: 17000 · Accumulated Depreciation | K72: 87.5 | M72: 87.5
D73: General Journal | E73: 2020-01-31 | F73: ADJ2 | G73: Ö | J73: 17000 · Accumulated Depreciation | K73: 15.28 | M73: 102.78
B74: Total 62400 · Depreciation Expense | K74: =ROUND(SUM(K71:K73),5) -> 102.78 | L74: =ROUND(SUM(L71:L73),5) -> 0 | M74: =M73 -> 102.78
B75: 64900 · Office Supplies | M75: 0
D76: Bill | E76: 2020-01-20 | H76: Jackson Computer Services | J76: 20000 · Accounts Payable | K76: 100 | M76: 100
D77: Bill | E77: 2020-01-24 | H77: Jackson Computer Services | J77: 20000 · Accounts Payable | K77: 200 | M77: 300
D78: General Journal | E78: 2020-01-31 | F78: ADJ3 | G78: Ö | J78: 13000 · Office Supplies on Hand | L78: 60 | M78: 240
B79: Total 64900 · Office Supplies | K79: =ROUND(SUM(K75:K78),5) -> 300 | L79: =ROUND(SUM(L75:L78),5) -> 60 | M79: =M78 -> 240
B80: 67100 · Rent Expense | M80: 0
D81: Bill | E81: 2020-01-01 | H81: Pitts Leasing | J81: 20000 · Accounts Payable | K81: 800 | M81: 800
B82: Total 67100 · Rent Expense | K82: =ROUND(SUM(K80:K81),5) -> 800 | L82: =ROUND(SUM(L80:L81),5) -> 0 | M82: =M81 -> 800
A83: TOTAL | K83: =ROUND(K15+K27+K37+K40+K44+K48+K59+K62+K70+K74+K79+K82,5) -> 22182.78 | L83: =ROUND(L15+L27+L37+L40+L44+L48+L59+L62+L70+L74+L79+L82,5) -> 22182.78 | M83: =ROUND(M15+M27+M37+M40+M44+M48+M59+M62+M70+M74+M79+M82,5) -> 0

Sheet PR9.9 PL
A1: YourName Project 9 Dominic Consulting
A2: Profit & Loss
A3: January 2020 | E3: Accrual Basis
E4: Jan 20
B5: Ordinary Income/Expense
C6: Income
D7: 47900 · Sales | E7: 4370
C8: Total Income | E8: =ROUND(SUM(E6:E7),5) -> 4370
C9: Expense
D10: 62400 · Depreciation Expense | E10: 102.78
D11: 64900 · Office Supplies | E11: 240
D12: 67100 · Rent Expense | E12: 800
C13: Total Expense | E13: =ROUND(SUM(E9:E12),5) -> 1142.78
B14: Net Ordinary Income | E14: =ROUND(E5+E8-E13,5) -> 3227.22
A15: Net Income | E15: =E14 -> 3227.22

Sheet PR9.10 BS
A1: YourName Project 9 Dominic Consulting
A2: Balance Sheet
A3: As of January 31, 2020 | F3: Accrual Basis
F4: Jan 31, 20
A5: ASSETS
B6: Current Assets
C7: Checking/Savings
D8: Checking | F8: 4650
C9: Total Checking/Savings | F9: =ROUND(SUM(F7:F8),5) -> 4650
C10: Accounts Receivable
D11: 11000 · Accounts Receivable | F11: 1520
C12: Total Accounts Receivable | F12: =ROUND(SUM(F10:F11),5) -> 1520
C13: Other Current Assets
D14: 13000 · Office Supplies on Hand | F14: 60
C15: Total Other Current Assets | F15: =ROUND(SUM(F13:F14),5) -> 60
B16: Total Current Assets | F16: =ROUND(F6+F9+F12+F15,5) -> 6230
B17: Fixed Assets
C18: 15000 · Furniture and Equipment | F18: 2650
C19: 17000 · Accumulated Depreciation | F19: -102.78
B20: Total Fixed Assets | F20: =ROUND(SUM(F17:F19),5) -> 2547.22
A21: TOTAL ASSETS | F21: =ROUND(F5+F16+F20,5) -> 8777.22
A22: LIABILITIES & EQUITY
B23: Liabilities
C24: Current Liabilities
D25: Accounts Payable
E26: 20000 · Accounts Payable | F26: 550
D27: Total Accounts Payable | F27: =ROUND(SUM(F25:F26),5) -> 550
C28: Total Current Liabilities | F28: =ROUND(F24+F27,5) -> 550
B29: Total Liabilities | F29: =ROUND(F23+F28,5) -> 550
B30: Equity
C31: 30000 · Opening Balance Equity | F31: 5000
C32: Net Income | F32: 3227.22
B33: Total Equity | F33: =ROUND(SUM(F30:F32),5) -> 8227.22
A34: TOTAL LIABILITIES & EQUITY | F34: =ROUND(F22+F29+F33,5) -> 8777.22

Sheet PR9.11 SCF
A1: YourName Project 9 Dominic Consulting
A2: Statement of Cash Flows
A3: January 2020
F4: Jan 20
C5: OPERATING ACTIVITIES
D6: Net Income | F6: 3227.22
D7: Adjustments to reconcile Net Income
D8: to net cash provided by operations:
E9: 11000 · Accounts Receivable | F9: -1520
E10: 13000 · Office Supplies on Hand | F10: -60
E11: 20000 · Accounts Payable | F11: 550
C12: Net cash provided by Operating Activities | F12: =ROUND(SUM(F5:F6)+SUM(F9:F11),5) -> 2197.22
C13: INVESTING ACTIVITIES
D14: 15000 · Furniture and Equipment | F14: -2650
D15: 17000 · Accumulated Depreciation | F15: 102.78
C16: Net cash provided by Investing Activities | F16: =ROUND(SUM(F13:F15),5) -> -2547.22
C17: FINANCING ACTIVITIES
D18: 30000 · Opening Balance Equity | F18: 5000
C19: Net cash provided by Financing Activities | F19: =ROUND(SUM(F17:F18),5) -> 5000
B20: Net cash increase for period | F20: =ROUND(F12+F16+F19,5) -> 4650
A21: Cash at end of period | F21: =F20 -> 4650
